Body Name,Body,Service division categorisation,Expense Type,Date paid,Transaction Reference,Net,Supplier Name
South Holland District Council,http://statistics.data.gov.uk/id/local-authority/32UF,Environmental Services,Agency Staff,05/03/2020,IJ00093623,2312.50,Bibby Factors Leicester Limited
South Holland District Council,http://statistics.data.gov.uk/id/local-authority/32UF,Environmental Services,Agency Staff,19/03/2020,IJ00094062,2110.94,Bibby Factors Leicester Limited
South Holland District Council,http://statistics.data.gov.uk/id/local-authority/32UF,Environmental Services,Agency Staff,19/03/2020,IJ00094206,2428.13,Bibby Factors Leicester Limited
South Holland District Council,http://statistics.data.gov.uk/id/local-authority/32UF,Environmental Services,Agency Staff,26/03/2020,IJ00094495,2246.88,Bibby Factors Leicester Limited
South Holland District Council,http://statistics.data.gov.uk/id/local-authority/32UF,Housing,Grants and Contributions to Outside Bodies- No Service Recei,26/03/2020,IJ00094505,2640.00,A Coupland (Surfacing) Ltd
South Holland District Council,http://statistics.data.gov.uk/id/local-authority/32UF,Housing,Bed and Breakfast Accommodation (Homelessness Service),12/03/2020,IJ00094000,937.50,Redacted Personal information
South Holland District Council,http://statistics.data.gov.uk/id/local-authority/32UF,HR,Staff Training Expenses,19/03/2020,IJ00094197,729.00,All Things Training
South Holland District Council,http://statistics.data.gov.uk/id/local-authority/32UF,Housing Landlord Manager,Computer Software Licence Costs,05/03/2020,IJ00093625,1050.55,Automico Limited
South Holland District Council,http://statistics.data.gov.uk/id/local-authority/32UF,Housing Landlord Manager,Computer Software Licence Costs,05/03/2020,IJ00093625,1050.55,Automico Limited
South Holland District Council,http://statistics.data.gov.uk/id/local-authority/32UF,Housing Landlord Manager,Buildings Maintenance - Responsive,19/03/2020,IJ00094195,695.00,Barry Disdels Landscapes and Maintenance
South Holland District Council,http://statistics.data.gov.uk/id/local-authority/32UF,Public Protection,Professional & Contractors Fees,12/03/2020,IJ00093934,575.00,Blazegate Boarding Kennels and Cattery
South Holland District Council,http://statistics.data.gov.uk/id/local-authority/32UF,Environmental Services,Agency Staff,12/03/2020,IJ00093838,1413.15,Blue Arrow Ltd
South Holland District Council,http://statistics.data.gov.uk/id/local-authority/32UF,Environmental Services,Agency Staff,19/03/2020,IJ00094394,2072.00,Blue Arrow Ltd
South Holland District Council,http://statistics.data.gov.uk/id/local-authority/32UF,Environmental Services,Agency Staff,25/03/2020,IJ00094435,1605.43,Blue Arrow Ltd
South Holland District Council,http://statistics.data.gov.uk/id/local-authority/32UF,Environmental Services,Agency Staff,26/03/2020,IJ00094480,1605.43,Blue Arrow Ltd
South Holland District Council,http://statistics.data.gov.uk/id/local-authority/32UF,Environmental Services,Agency Staff,31/03/2020,IJ00094664,1185.20,Blue Arrow Ltd
South Holland District Council,http://statistics.data.gov.uk/id/local-authority/32UF,Environmental Services,Materials and Consumables,12/03/2020,IJ00094045,5444.01,RPC bpi refuse
South Holland District Council,http://statistics.data.gov.uk/id/local-authority/32UF,Environmental Services,Materials and Consumables,12/03/2020,IJ00094045,5171.17,RPC bpi refuse
South Holland District Council,http://statistics.data.gov.uk/id/local-authority/32UF,Chief Executive,Shared Management,05/03/2020,IJ00093825,85971.67,Breckland Council
South Holland District Council,http://statistics.data.gov.uk/id/local-authority/32UF,HR,Staff Training Expenses,12/03/2020,IJ00094034,3740.00,Breckland Council
South Holland District Council,http://statistics.data.gov.uk/id/local-authority/32UF,Chief Executive,Shared Management,19/03/2020,IJ00094273,88982.17,Breckland Council
South Holland District Council,http://statistics.data.gov.uk/id/local-authority/32UF,Chief Executive,Shared Management,19/03/2020,IJ00094276,91064.66,Breckland Council
South Holland District Council,http://statistics.data.gov.uk/id/local-authority/32UF,Chief Executive,Shared Management,26/03/2020,IJ00094534,7500.00,Breckland Council
South Holland District Council,http://statistics.data.gov.uk/id/local-authority/32UF,Chief Executive,Shared Management,31/03/2020,IJ00094605,22171.93,Breckland Council
South Holland District Council,http://statistics.data.gov.uk/id/local-authority/32UF,HR,Staff Training Expenses,31/03/2020,IJ00094629,3500.00,Breckland Council
South Holland District Council,http://statistics.data.gov.uk/id/local-authority/32UF,Chief Executive,Shared Management,31/03/2020,IJ00094712,27734.11,Breckland Council
South Holland District Council,http://statistics.data.gov.uk/id/local-authority/32UF,Finance,Telephones,05/03/2020,IJ00093806,2217.73,British Telecom Corporate Plc
South Holland District Council,http://statistics.data.gov.uk/id/local-authority/32UF,Asset and Property,Professional & Contractors Fees,05/03/2020,IJ00093626,528.00,Brown and Co
South Holland District Council,http://statistics.data.gov.uk/id/local-authority/32UF,Building Control,License Fees,12/03/2020,IJ00093976,633.00,Bsi Membership
South Holland District Council,http://statistics.data.gov.uk/id/local-authority/32UF,Environmental Services,Furniture and Equipment,26/03/2020,IJ00094497,1276.22,Burdens Group Ltd
South Holland District Council,http://statistics.data.gov.uk/id/local-authority/32UF,Finance,Banking Charges,31/03/2020,IJ00094611,2968.10,Capita Business Services Ltd
South Holland District Council,http://statistics.data.gov.uk/id/local-authority/32UF,Housing Landlord Manager,Sewerage Treatment Works,12/03/2020,IJ00093950,24011.81,C.G. Godfrey Ltd
South Holland District Council,http://statistics.data.gov.uk/id/local-authority/32UF,Capital,Works to Buildings (main Contractor),26/03/2020,IJ00094475,109861.64,C.G. Godfrey Ltd
South Holland District Council,http://statistics.data.gov.uk/id/local-authority/32UF,Housing Landlord Manager,Maintenance of Footpaths and Roadways,26/03/2020,IJ00094476,3931.44,C.G. Godfrey Ltd
South Holland District Council,http://statistics.data.gov.uk/id/local-authority/32UF,Housing Landlord Manager,Buildings Maintenance - Responsive,26/03/2020,IJ00094516,6575.00,C.G. Godfrey Ltd
South Holland District Council,http://statistics.data.gov.uk/id/local-authority/32UF,Housing Landlord Manager,Sewerage Treatment Works,26/03/2020,IJ00094580,24011.81,C.G. Godfrey Ltd
South Holland District Council,http://statistics.data.gov.uk/id/local-authority/32UF,Environmental Services,Fuel & Oil,05/03/2020,IJ00093770,1118.57,WCF Chandlers
South Holland District Council,http://statistics.data.gov.uk/id/local-authority/32UF,Housing Landlord Manager,Fuel & Oil,05/03/2020,IJ00093717,514.91,C H Jones Ltd
South Holland District Council,http://statistics.data.gov.uk/id/local-authority/32UF,Environmental Services,Fuel & Oil,05/03/2020,IJ00093717,242.37,C H Jones Ltd
South Holland District Council,http://statistics.data.gov.uk/id/local-authority/32UF,Housing Landlord Manager,Fuel & Oil,05/03/2020,IJ00093717,40.19,C H Jones Ltd
South Holland District Council,http://statistics.data.gov.uk/id/local-authority/32UF,Public Protection,Fuel & Oil,05/03/2020,IJ00093717,38.79,C H Jones Ltd
South Holland District Council,http://statistics.data.gov.uk/id/local-authority/32UF,Environmental Services,Fuel & Oil,05/03/2020,IJ00093717,6121.80,C H Jones Ltd
South Holland District Council,http://statistics.data.gov.uk/id/local-authority/32UF,Environmental Services,Fuel & Oil,05/03/2020,IJ00093717,613.05,C H Jones Ltd
South Holland District Council,http://statistics.data.gov.uk/id/local-authority/32UF,Environmental Services,Fuel & Oil,05/03/2020,IJ00093717,145.63,C H Jones Ltd
South Holland District Council,http://statistics.data.gov.uk/id/local-authority/32UF,Environmental Services,Fuel & Oil,05/03/2020,IJ00093717,114.83,C H Jones Ltd
South Holland District Council,http://statistics.data.gov.uk/id/local-authority/32UF,Housing Landlord Manager,Fuel & Oil,12/03/2020,IJ00093996,371.67,C H Jones Ltd
South Holland District Council,http://statistics.data.gov.uk/id/local-authority/32UF,Environmental Services,Fuel & Oil,12/03/2020,IJ00093996,294.51,C H Jones Ltd
South Holland District Council,http://statistics.data.gov.uk/id/local-authority/32UF,Housing Landlord Manager,Fuel & Oil,12/03/2020,IJ00093996,69.14,C H Jones Ltd
South Holland District Council,http://statistics.data.gov.uk/id/local-authority/32UF,Environmental Services,Fuel & Oil,12/03/2020,IJ00093996,19.25,C H Jones Ltd
South Holland District Council,http://statistics.data.gov.uk/id/local-authority/32UF,Public Protection,Fuel & Oil,12/03/2020,IJ00093996,41.74,C H Jones Ltd
South Holland District Council,http://statistics.data.gov.uk/id/local-authority/32UF,Environmental Services,Fuel & Oil,12/03/2020,IJ00093996,5207.79,C H Jones Ltd
South Holland District Council,http://statistics.data.gov.uk/id/local-authority/32UF,Environmental Services,Fuel & Oil,12/03/2020,IJ00093996,238.04,C H Jones Ltd
South Holland District Council,http://statistics.data.gov.uk/id/local-authority/32UF,Environmental Services,Fuel & Oil,12/03/2020,IJ00093996,71.52,C H Jones Ltd
South Holland District Council,http://statistics.data.gov.uk/id/local-authority/32UF,Environmental Services,Fuel & Oil,12/03/2020,IJ00093996,111.26,C H Jones Ltd
South Holland District Council,http://statistics.data.gov.uk/id/local-authority/32UF,Housing Landlord Manager,Fuel & Oil,19/03/2020,IJ00094193,437.17,C H Jones Ltd
South Holland District Council,http://statistics.data.gov.uk/id/local-authority/32UF,Environmental Services,Fuel & Oil,19/03/2020,IJ00094193,212.25,C H Jones Ltd
South Holland District Council,http://statistics.data.gov.uk/id/local-authority/32UF,Housing Landlord Manager,Fuel & Oil,19/03/2020,IJ00094193,217.84,C H Jones Ltd
South Holland District Council,http://statistics.data.gov.uk/id/local-authority/32UF,Environmental Services,Fuel & Oil,19/03/2020,IJ00094193,48.18,C H Jones Ltd
South Holland District Council,http://statistics.data.gov.uk/id/local-authority/32UF,Environmental Services,Fuel & Oil,19/03/2020,IJ00094193,5151.87,C H Jones Ltd
South Holland District Council,http://statistics.data.gov.uk/id/local-authority/32UF,Environmental Services,Fuel & Oil,19/03/2020,IJ00094193,516.60,C H Jones Ltd
South Holland District Council,http://statistics.data.gov.uk/id/local-authority/32UF,Environmental Services,Fuel & Oil,19/03/2020,IJ00094193,67.50,C H Jones Ltd
South Holland District Council,http://statistics.data.gov.uk/id/local-authority/32UF,Environmental Services,Fuel & Oil,19/03/2020,IJ00094193,115.48,C H Jones Ltd
South Holland District Council,http://statistics.data.gov.uk/id/local-authority/32UF,Housing Landlord Manager,Fuel & Oil,26/03/2020,IJ00094517,213.27,C H Jones Ltd
South Holland District Council,http://statistics.data.gov.uk/id/local-authority/32UF,Environmental Services,Fuel & Oil,26/03/2020,IJ00094517,190.15,C H Jones Ltd
South Holland District Council,http://statistics.data.gov.uk/id/local-authority/32UF,Housing Landlord Manager,Fuel & Oil,26/03/2020,IJ00094517,152.78,C H Jones Ltd
South Holland District Council,http://statistics.data.gov.uk/id/local-authority/32UF,Public Protection,Fuel & Oil,26/03/2020,IJ00094517,31.40,C H Jones Ltd
South Holland District Council,http://statistics.data.gov.uk/id/local-authority/32UF,Environmental Services,Fuel & Oil,26/03/2020,IJ00094517,4920.81,C H Jones Ltd
South Holland District Council,http://statistics.data.gov.uk/id/local-authority/32UF,Environmental Services,Fuel & Oil,26/03/2020,IJ00094517,392.83,C H Jones Ltd
South Holland District Council,http://statistics.data.gov.uk/id/local-authority/32UF,Environmental Services,Fuel & Oil,26/03/2020,IJ00094517,128.14,C H Jones Ltd
South Holland District Council,http://statistics.data.gov.uk/id/local-authority/32UF,Housing Landlord Manager,Fuel & Oil,31/03/2020,IJ00094708,159.32,C H Jones Ltd
South Holland District Council,http://statistics.data.gov.uk/id/local-authority/32UF,Environmental Services,Fuel & Oil,31/03/2020,IJ00094708,182.66,C H Jones Ltd
South Holland District Council,http://statistics.data.gov.uk/id/local-authority/32UF,Housing Landlord Manager,Fuel & Oil,31/03/2020,IJ00094708,42.67,C H Jones Ltd
South Holland District Council,http://statistics.data.gov.uk/id/local-authority/32UF,Environmental Services,Fuel & Oil,31/03/2020,IJ00094708,4741.99,C H Jones Ltd
South Holland District Council,http://statistics.data.gov.uk/id/local-authority/32UF,Environmental Services,Fuel & Oil,31/03/2020,IJ00094708,374.29,C H Jones Ltd
South Holland District Council,http://statistics.data.gov.uk/id/local-authority/32UF,Environmental Services,Fuel & Oil,31/03/2020,IJ00094708,119.20,C H Jones Ltd
South Holland District Council,http://statistics.data.gov.uk/id/local-authority/32UF,Environmental Services,Fuel & Oil,31/03/2020,IJ00094708,145.68,C H Jones Ltd
South Holland District Council,http://statistics.data.gov.uk/id/local-authority/32UF,Community Development,External Printing and Design Costs,26/03/2020,IJ00094554,553.00,Classic Printers Crowland Ltd
South Holland District Council,http://statistics.data.gov.uk/id/local-authority/32UF,Community Development,External Printing and Design Costs,26/03/2020,IJ00094556,680.00,Classic Printers Crowland Ltd
South Holland District Council,http://statistics.data.gov.uk/id/local-authority/32UF,Community Development,Postages,26/03/2020,IJ00094565,1556.10,Classic Printers Crowland Ltd
South Holland District Council,http://statistics.data.gov.uk/id/local-authority/32UF,Economic Development,Grants and Contributions to Outside Bodies- No Service Recei,19/03/2020,IJ00094088,828.80,Coda Bulders Ltd
South Holland District Council,http://statistics.data.gov.uk/id/local-authority/32UF,Corporate Improvement and Performance,PSPS Non Base Contract Costs,05/03/2020,IJ00093581,17490.29,Public Sector Partnership Serivces Limited
South Holland District Council,http://statistics.data.gov.uk/id/local-authority/32UF,Finance,Public Sector Partnership Services,05/03/2020,IJ00093621,264401.83,Public Sector Partnership Serivces Limited
South Holland District Council,http://statistics.data.gov.uk/id/local-authority/32UF,Capital,Purchase of Software,05/03/2020,IJ00093771,31310.25,Public Sector Partnership Serivces Limited
South Holland District Council,http://statistics.data.gov.uk/id/local-authority/32UF,Planning,Telephones,05/03/2020,IJ00093803,473.87,Public Sector Partnership Serivces Limited
South Holland District Council,http://statistics.data.gov.uk/id/local-authority/32UF,Chief Executive,Telephones,05/03/2020,IJ00093803,1029.06,Public Sector Partnership Serivces Limited
South Holland District Council,http://statistics.data.gov.uk/id/local-authority/32UF,Housing Landlord Manager,Telephones,05/03/2020,IJ00093803,595.91,Public Sector Partnership Serivces Limited
South Holland District Council,http://statistics.data.gov.uk/id/local-authority/32UF,Democratic Services,Telephones,05/03/2020,IJ00093803,3403.44,Public Sector Partnership Serivces Limited
South Holland District Council,http://statistics.data.gov.uk/id/local-authority/32UF,Asset and Property,Telephones,05/03/2020,IJ00093803,48.00,Public Sector Partnership Serivces Limited
South Holland District Council,http://statistics.data.gov.uk/id/local-authority/32UF,Planning,Telephones,05/03/2020,IJ00093803,96.00,Public Sector Partnership Serivces Limited
South Holland District Council,http://statistics.data.gov.uk/id/local-authority/32UF,Planning,Telephones,05/03/2020,IJ00093803,96.00,Public Sector Partnership Serivces Limited
South Holland District Council,http://statistics.data.gov.uk/id/local-authority/32UF,Building Control,Telephones,05/03/2020,IJ00093803,222.82,Public Sector Partnership Serivces Limited
South Holland District Council,http://statistics.data.gov.uk/id/local-authority/32UF,Community Development,Telephones,05/03/2020,IJ00093803,111.22,Public Sector Partnership Serivces Limited
South Holland District Council,http://statistics.data.gov.uk/id/local-authority/32UF,Housing,Telephones,05/03/2020,IJ00093803,1161.02,Public Sector Partnership Serivces Limited
South Holland District Council,http://statistics.data.gov.uk/id/local-authority/32UF,Housing,Telephones,05/03/2020,IJ00093803,96.36,Public Sector Partnership Serivces Limited
South Holland District Council,http://statistics.data.gov.uk/id/local-authority/32UF,Housing Landlord Manager,Telephones,05/03/2020,IJ00093803,1903.87,Public Sector Partnership Serivces Limited
South Holland District Council,http://statistics.data.gov.uk/id/local-authority/32UF,Environmental Services,Telephones,05/03/2020,IJ00093803,192.00,Public Sector Partnership Serivces Limited
South Holland District Council,http://statistics.data.gov.uk/id/local-authority/32UF,Public Protection,Telephones,05/03/2020,IJ00093803,525.53,Public Sector Partnership Serivces Limited
South Holland District Council,http://statistics.data.gov.uk/id/local-authority/32UF,Public Protection,Telephones,05/03/2020,IJ00093803,342.17,Public Sector Partnership Serivces Limited
South Holland District Council,http://statistics.data.gov.uk/id/local-authority/32UF,Public Protection,Telephones,05/03/2020,IJ00093803,298.68,Public Sector Partnership Serivces Limited
South Holland District Council,http://statistics.data.gov.uk/id/local-authority/32UF,Community Development,Telephones,05/03/2020,IJ00093803,192.13,Public Sector Partnership Serivces Limited
South Holland District Council,http://statistics.data.gov.uk/id/local-authority/32UF,Community Development,Telephones,05/03/2020,IJ00093803,974.66,Public Sector Partnership Serivces Limited
South Holland District Council,http://statistics.data.gov.uk/id/local-authority/32UF,Economic Development,Telephones,05/03/2020,IJ00093803,288.00,Public Sector Partnership Serivces Limited
South Holland District Council,http://statistics.data.gov.uk/id/local-authority/32UF,Building Control,Telephones,05/03/2020,IJ00093803,187.28,Public Sector Partnership Serivces Limited
South Holland District Council,http://statistics.data.gov.uk/id/local-authority/32UF,Housing Landlord Manager,Telephones,05/03/2020,IJ00093803,192.00,Public Sector Partnership Serivces Limited
South Holland District Council,http://statistics.data.gov.uk/id/local-authority/32UF,Housing Landlord Manager,Telephones,05/03/2020,IJ00093803,103.49,Public Sector Partnership Serivces Limited
South Holland District Council,http://statistics.data.gov.uk/id/local-authority/32UF,Housing Landlord Manager,Telephones,05/03/2020,IJ00093803,192.00,Public Sector Partnership Serivces Limited
South Holland District Council,http://statistics.data.gov.uk/id/local-authority/32UF,Building Control,Telephones,05/03/2020,IJ00093803,250.16,Public Sector Partnership Serivces Limited
South Holland District Council,http://statistics.data.gov.uk/id/local-authority/32UF,Housing,Telephones,05/03/2020,IJ00093803,102.29,Public Sector Partnership Serivces Limited
South Holland District Council,http://statistics.data.gov.uk/id/local-authority/32UF,Housing,Telephones,05/03/2020,IJ00093803,96.00,Public Sector Partnership Serivces Limited
South Holland District Council,http://statistics.data.gov.uk/id/local-authority/32UF,Public Protection,Telephones,05/03/2020,IJ00093803,196.33,Public Sector Partnership Serivces Limited
South Holland District Council,http://statistics.data.gov.uk/id/local-authority/32UF,Housing Landlord Manager,Telephones,05/03/2020,IJ00093803,784.34,Public Sector Partnership Serivces Limited
South Holland District Council,http://statistics.data.gov.uk/id/local-authority/32UF,Community Development,Telephones,05/03/2020,IJ00093803,96.00,Public Sector Partnership Serivces Limited
South Holland District Council,http://statistics.data.gov.uk/id/local-authority/32UF,Community Development,Telephones,05/03/2020,IJ00093803,197.72,Public Sector Partnership Serivces Limited
South Holland District Council,http://statistics.data.gov.uk/id/local-authority/32UF,Housing Landlord Manager,Telephones,05/03/2020,IJ00093803,249.60,Public Sector Partnership Serivces Limited
South Holland District Council,http://statistics.data.gov.uk/id/local-authority/32UF,Housing Landlord Manager,Telephones,05/03/2020,IJ00093803,96.00,Public Sector Partnership Serivces Limited
South Holland District Council,http://statistics.data.gov.uk/id/local-authority/32UF,Communications,Telephones,05/03/2020,IJ00093803,107.20,Public Sector Partnership Serivces Limited
South Holland District Council,http://statistics.data.gov.uk/id/local-authority/32UF,Environmental Services,Telephones,05/03/2020,IJ00093803,594.54,Public Sector Partnership Serivces Limited
South Holland District Council,http://statistics.data.gov.uk/id/local-authority/32UF,Corporate Improvement and Performance,Telephones,05/03/2020,IJ00093803,96.25,Public Sector Partnership Serivces Limited
South Holland District Council,http://statistics.data.gov.uk/id/local-authority/32UF,Commercialisation,Telephones,05/03/2020,IJ00093803,96.00,Public Sector Partnership Serivces Limited
South Holland District Council,http://statistics.data.gov.uk/id/local-authority/32UF,Commercialisation,Telephones,05/03/2020,IJ00093803,367.83,Public Sector Partnership Serivces Limited
South Holland District Council,http://statistics.data.gov.uk/id/local-authority/32UF,Chief Executive,Telephones,05/03/2020,IJ00093803,5178.66,Public Sector Partnership Serivces Limited
South Holland District Council,http://statistics.data.gov.uk/id/local-authority/32UF,Economic Development,Telephones,05/03/2020,IJ00093803,96.00,Public Sector Partnership Serivces Limited
South Holland District Council,http://statistics.data.gov.uk/id/local-authority/32UF,Commercialisation,Telephones,05/03/2020,IJ00093803,96.00,Public Sector Partnership Serivces Limited
South Holland District Council,http://statistics.data.gov.uk/id/local-authority/32UF,Environmental Services,Telephones,05/03/2020,IJ00093803,521.89,Public Sector Partnership Serivces Limited
South Holland District Council,http://statistics.data.gov.uk/id/local-authority/32UF,Community Development,Telephones,05/03/2020,IJ00093803,192.38,Public Sector Partnership Serivces Limited
South Holland District Council,http://statistics.data.gov.uk/id/local-authority/32UF,Commercialisation,Telephones,05/03/2020,IJ00093803,96.00,Public Sector Partnership Serivces Limited
South Holland District Council,http://statistics.data.gov.uk/id/local-authority/32UF,Housing Landlord Manager,Telephones,05/03/2020,IJ00093803,107.50,Public Sector Partnership Serivces Limited
South Holland District Council,http://statistics.data.gov.uk/id/local-authority/32UF,HR,Staff Training Expenses,05/03/2020,IJ00093805,944.00,Public Sector Partnership Serivces Limited
South Holland District Council,http://statistics.data.gov.uk/id/local-authority/32UF,Public Protection,Furniture and Equipment,05/03/2020,IJ00093805,21.72,Public Sector Partnership Serivces Limited
South Holland District Council,http://statistics.data.gov.uk/id/local-authority/32UF,Planning,Other Employee Expenses,05/03/2020,IJ00093805,45.00,Public Sector Partnership Serivces Limited
South Holland District Council,http://statistics.data.gov.uk/id/local-authority/32UF,HR,Other Employee Expenses,05/03/2020,IJ00093805,36.57,Public Sector Partnership Serivces Limited
South Holland District Council,http://statistics.data.gov.uk/id/local-authority/32UF,Building Control,License Fees,05/03/2020,IJ00093805,455.00,Public Sector Partnership Serivces Limited
South Holland District Council,http://statistics.data.gov.uk/id/local-authority/32UF,HR,Other Miscellaneous Expenses,05/03/2020,IJ00093805,20.80,Public Sector Partnership Serivces Limited
South Holland District Council,http://statistics.data.gov.uk/id/local-authority/32UF,HR,Other Miscellaneous Expenses,05/03/2020,IJ00093805,612.32,Public Sector Partnership Serivces Limited
South Holland District Council,http://statistics.data.gov.uk/id/local-authority/32UF,ICT and Customer Services,Telephones,05/03/2020,IJ00093805,843.49,Public Sector Partnership Serivces Limited
South Holland District Council,http://statistics.data.gov.uk/id/local-authority/32UF,ICT and Customer Services,Subscriptions to Organisations and Other Bodies,05/03/2020,IJ00093805,50.00,Public Sector Partnership Serivces Limited
South Holland District Council,http://statistics.data.gov.uk/id/local-authority/32UF,Public Protection,Employees Subsistence,05/03/2020,IJ00093805,297.99,Public Sector Partnership Serivces Limited
South Holland District Council,http://statistics.data.gov.uk/id/local-authority/32UF,Democratic Services,Advertising - Legal And Public,05/03/2020,IJ00093805,118.30,Public Sector Partnership Serivces Limited
South Holland District Council,http://statistics.data.gov.uk/id/local-authority/32UF,Public Protection,Advertising - Legal And Public,05/03/2020,IJ00093805,101.40,Public Sector Partnership Serivces Limited
South Holland District Council,http://statistics.data.gov.uk/id/local-authority/32UF,ICT and Customer Services,Computer Software Licence Costs,05/03/2020,IJ00093805,617.41,Public Sector Partnership Serivces Limited
South Holland District Council,http://statistics.data.gov.uk/id/local-authority/32UF,ICT and Customer Services,Computer Software Licence Costs,05/03/2020,IJ00093805,65.88,Public Sector Partnership Serivces Limited
South Holland District Council,http://statistics.data.gov.uk/id/local-authority/32UF,Public Protection,Other Employee Expenses,05/03/2020,IJ00093805,45.00,Public Sector Partnership Serivces Limited
South Holland District Council,http://statistics.data.gov.uk/id/local-authority/32UF,Community Development,Other Miscellaneous Expenses,05/03/2020,IJ00093805,52.00,Public Sector Partnership Serivces Limited
South Holland District Council,http://statistics.data.gov.uk/id/local-authority/32UF,Community Development,Advertising - Events,05/03/2020,IJ00093805,441.48,Public Sector Partnership Serivces Limited
South Holland District Council,http://statistics.data.gov.uk/id/local-authority/32UF,ICT and Customer Services,Telephones,05/03/2020,IJ00093805,89.94,Public Sector Partnership Serivces Limited
South Holland District Council,http://statistics.data.gov.uk/id/local-authority/32UF,HR,Employee Related Schemes,05/03/2020,IJ00093805,319.90,Public Sector Partnership Serivces Limited
South Holland District Council,http://statistics.data.gov.uk/id/local-authority/32UF,ICT and Customer Services,Materials and Consumables,05/03/2020,IJ00093805,364.33,Public Sector Partnership Serivces Limited
South Holland District Council,http://statistics.data.gov.uk/id/local-authority/32UF,Housing,Court Costs,05/03/2020,IJ00093805,70.00,Public Sector Partnership Serivces Limited
South Holland District Council,http://statistics.data.gov.uk/id/local-authority/32UF,Environmental Services,Court Costs,05/03/2020,IJ00093805,60.00,Public Sector Partnership Serivces Limited
South Holland District Council,http://statistics.data.gov.uk/id/local-authority/32UF,Community Development,Other Miscellaneous Expenses,05/03/2020,IJ00093805,289.72,Public Sector Partnership Serivces Limited
South Holland District Council,http://statistics.data.gov.uk/id/local-authority/32UF,Revs and Bens,Court Costs,05/03/2020,IJ00093805,100.00,Public Sector Partnership Serivces Limited
South Holland District Council,http://statistics.data.gov.uk/id/local-authority/32UF,Public Protection,Advertising - Legal And Public,05/03/2020,IJ00093805,200.70,Public Sector Partnership Serivces Limited
South Holland District Council,http://statistics.data.gov.uk/id/local-authority/32UF,Commercialisation,Staff Recruitment,05/03/2020,IJ00093805,820.00,Public Sector Partnership Serivces Limited
South Holland District Council,http://statistics.data.gov.uk/id/local-authority/32UF,HR,Staff Recruitment,05/03/2020,IJ00093805,118.80,Public Sector Partnership Serivces Limited
South Holland District Council,http://statistics.data.gov.uk/id/local-authority/32UF,Capital,Purchase of Software,05/03/2020,IJ00093805,173.46,Public Sector Partnership Serivces Limited
South Holland District Council,http://statistics.data.gov.uk/id/local-authority/32UF,Public Protection,Other Employee Expenses,05/03/2020,IJ00093805,210.00,Public Sector Partnership Serivces Limited
South Holland District Council,http://statistics.data.gov.uk/id/local-authority/32UF,Public Protection,Other Employee Expenses,05/03/2020,IJ00093805,87.00,Public Sector Partnership Serivces Limited
South Holland District Council,http://statistics.data.gov.uk/id/local-authority/32UF,Chief Executive,Computer Hardware Purchase,05/03/2020,IJ00093805,17.07,Public Sector Partnership Serivces Limited
South Holland District Council,http://statistics.data.gov.uk/id/local-authority/32UF,Commercialisation,Staff Training Expenses,05/03/2020,IJ00093805,500.00,Public Sector Partnership Serivces Limited
South Holland District Council,http://statistics.data.gov.uk/id/local-authority/32UF,Community Development,Court Costs,05/03/2020,IJ00093805,25.00,Public Sector Partnership Serivces Limited
South Holland District Council,http://statistics.data.gov.uk/id/local-authority/32UF,Housing,Court Costs,05/03/2020,IJ00093805,17.50,Public Sector Partnership Serivces Limited
South Holland District Council,http://statistics.data.gov.uk/id/local-authority/32UF,Housing,Court Costs,05/03/2020,IJ00093805,17.50,Public Sector Partnership Serivces Limited
South Holland District Council,http://statistics.data.gov.uk/id/local-authority/32UF,Housing Landlord Manager,Advertising - Legal And Public,05/03/2020,IJ00093805,1553.99,Public Sector Partnership Serivces Limited
South Holland District Council,http://statistics.data.gov.uk/id/local-authority/32UF,Environmental Services,Other Employee Expenses,05/03/2020,IJ00093805,46.50,Public Sector Partnership Serivces Limited
South Holland District Council,http://statistics.data.gov.uk/id/local-authority/32UF,Finance,Staff Recruitment,05/03/2020,IJ00093805,1000.01,Public Sector Partnership Serivces Limited
South Holland District Council,http://statistics.data.gov.uk/id/local-authority/32UF,Revs and Bens,Professional & Contractors Fees,19/03/2020,IJ00094302,807.33,Public Sector Partnership Serivces Limited
South Holland District Council,http://statistics.data.gov.uk/id/local-authority/32UF,ICT and Customer Services,External Printing and Design Costs,19/03/2020,IJ00094303,4920.41,Public Sector Partnership Serivces Limited
South Holland District Council,http://statistics.data.gov.uk/id/local-authority/32UF,Planning,Telephones,19/03/2020,IJ00094311,91.24,Public Sector Partnership Serivces Limited
South Holland District Council,http://statistics.data.gov.uk/id/local-authority/32UF,Planning,Telephones,19/03/2020,IJ00094311,-1.40,Public Sector Partnership Serivces Limited
South Holland District Council,http://statistics.data.gov.uk/id/local-authority/32UF,Chief Executive,Telephones,19/03/2020,IJ00094311,459.07,Public Sector Partnership Serivces Limited
South Holland District Council,http://statistics.data.gov.uk/id/local-authority/32UF,Housing Landlord Manager,Telephones,19/03/2020,IJ00094311,52.40,Public Sector Partnership Serivces Limited
South Holland District Council,http://statistics.data.gov.uk/id/local-authority/32UF,Democratic Services,Telephones,19/03/2020,IJ00094311,152.25,Public Sector Partnership Serivces Limited
South Holland District Council,http://statistics.data.gov.uk/id/local-authority/32UF,Asset and Property,Telephones,19/03/2020,IJ00094311,7.40,Public Sector Partnership Serivces Limited
South Holland District Council,http://statistics.data.gov.uk/id/local-authority/32UF,Planning,Telephones,19/03/2020,IJ00094311,7.09,Public Sector Partnership Serivces Limited
South Holland District Council,http://statistics.data.gov.uk/id/local-authority/32UF,Building Control,Telephones,19/03/2020,IJ00094311,45.85,Public Sector Partnership Serivces Limited
South Holland District Council,http://statistics.data.gov.uk/id/local-authority/32UF,Community Development,Telephones,19/03/2020,IJ00094311,-5.52,Public Sector Partnership Serivces Limited
South Holland District Council,http://statistics.data.gov.uk/id/local-authority/32UF,Housing Landlord Manager,Telephones,19/03/2020,IJ00094311,36.00,Public Sector Partnership Serivces Limited
South Holland District Council,http://statistics.data.gov.uk/id/local-authority/32UF,Housing,Telephones,19/03/2020,IJ00094311,306.04,Public Sector Partnership Serivces Limited
South Holland District Council,http://statistics.data.gov.uk/id/local-authority/32UF,Housing,Telephones,19/03/2020,IJ00094311,38.20,Public Sector Partnership Serivces Limited
South Holland District Council,http://statistics.data.gov.uk/id/local-authority/32UF,Housing Landlord Manager,Telephones,19/03/2020,IJ00094311,111.70,Public Sector Partnership Serivces Limited
South Holland District Council,http://statistics.data.gov.uk/id/local-authority/32UF,Environmental Services,Telephones,19/03/2020,IJ00094311,27.72,Public Sector Partnership Serivces Limited
South Holland District Council,http://statistics.data.gov.uk/id/local-authority/32UF,Public Protection,Telephones,19/03/2020,IJ00094311,57.91,Public Sector Partnership Serivces Limited
South Holland District Council,http://statistics.data.gov.uk/id/local-authority/32UF,Public Protection,Telephones,19/03/2020,IJ00094311,154.25,Public Sector Partnership Serivces Limited
South Holland District Council,http://statistics.data.gov.uk/id/local-authority/32UF,Public Protection,Telephones,19/03/2020,IJ00094311,16.80,Public Sector Partnership Serivces Limited
South Holland District Council,http://statistics.data.gov.uk/id/local-authority/32UF,Community Development,Telephones,19/03/2020,IJ00094311,25.20,Public Sector Partnership Serivces Limited
South Holland District Council,http://statistics.data.gov.uk/id/local-authority/32UF,Community Development,Telephones,19/03/2020,IJ00094311,116.00,Public Sector Partnership Serivces Limited
South Holland District Council,http://statistics.data.gov.uk/id/local-authority/32UF,Economic Development,Telephones,19/03/2020,IJ00094311,69.78,Public Sector Partnership Serivces Limited
South Holland District Council,http://statistics.data.gov.uk/id/local-authority/32UF,Building Control,Telephones,19/03/2020,IJ00094311,5.12,Public Sector Partnership Serivces Limited
South Holland District Council,http://statistics.data.gov.uk/id/local-authority/32UF,Housing Landlord Manager,Telephones,19/03/2020,IJ00094311,36.00,Public Sector Partnership Serivces Limited
South Holland District Council,http://statistics.data.gov.uk/id/local-authority/32UF,Housing Landlord Manager,Telephones,19/03/2020,IJ00094311,72.00,Public Sector Partnership Serivces Limited
South Holland District Council,http://statistics.data.gov.uk/id/local-authority/32UF,Housing Landlord Manager,Telephones,19/03/2020,IJ00094311,-5.60,Public Sector Partnership Serivces Limited
South Holland District Council,http://statistics.data.gov.uk/id/local-authority/32UF,Housing Landlord Manager,Telephones,19/03/2020,IJ00094311,-10.40,Public Sector Partnership Serivces Limited
South Holland District Council,http://statistics.data.gov.uk/id/local-authority/32UF,Building Control,Telephones,19/03/2020,IJ00094311,-2.26,Public Sector Partnership Serivces Limited
South Holland District Council,http://statistics.data.gov.uk/id/local-authority/32UF,Housing,Telephones,19/03/2020,IJ00094311,-8.80,Public Sector Partnership Serivces Limited
South Holland District Council,http://statistics.data.gov.uk/id/local-authority/32UF,Housing,Telephones,19/03/2020,IJ00094311,-10.80,Public Sector Partnership Serivces Limited
South Holland District Council,http://statistics.data.gov.uk/id/local-authority/32UF,Public Protection,Telephones,19/03/2020,IJ00094311,30.40,Public Sector Partnership Serivces Limited
South Holland District Council,http://statistics.data.gov.uk/id/local-authority/32UF,Housing Landlord Manager,Telephones,19/03/2020,IJ00094311,207.54,Public Sector Partnership Serivces Limited
South Holland District Council,http://statistics.data.gov.uk/id/local-authority/32UF,Community Development,Telephones,19/03/2020,IJ00094311,6.80,Public Sector Partnership Serivces Limited
South Holland District Council,http://statistics.data.gov.uk/id/local-authority/32UF,Community Development,Telephones,19/03/2020,IJ00094311,38.56,Public Sector Partnership Serivces Limited
South Holland District Council,http://statistics.data.gov.uk/id/local-authority/32UF,Housing Landlord Manager,Telephones,19/03/2020,IJ00094311,36.00,Public Sector Partnership Serivces Limited
South Holland District Council,http://statistics.data.gov.uk/id/local-authority/32UF,Housing Landlord Manager,Telephones,19/03/2020,IJ00094311,-10.80,Public Sector Partnership Serivces Limited
South Holland District Council,http://statistics.data.gov.uk/id/local-authority/32UF,Communications,Telephones,19/03/2020,IJ00094311,36.00,Public Sector Partnership Serivces Limited
South Holland District Council,http://statistics.data.gov.uk/id/local-authority/32UF,Environmental Services,Telephones,19/03/2020,IJ00094311,45.94,Public Sector Partnership Serivces Limited
South Holland District Council,http://statistics.data.gov.uk/id/local-authority/32UF,Corporate Improvement and Performance,Telephones,19/03/2020,IJ00094311,43.94,Public Sector Partnership Serivces Limited
South Holland District Council,http://statistics.data.gov.uk/id/local-authority/32UF,Commercialisation,Telephones,19/03/2020,IJ00094311,36.00,Public Sector Partnership Serivces Limited
South Holland District Council,http://statistics.data.gov.uk/id/local-authority/32UF,Commercialisation,Telephones,19/03/2020,IJ00094311,100.42,Public Sector Partnership Serivces Limited
South Holland District Council,http://statistics.data.gov.uk/id/local-authority/32UF,Chief Executive,Telephones,19/03/2020,IJ00094311,955.63,Public Sector Partnership Serivces Limited
South Holland District Council,http://statistics.data.gov.uk/id/local-authority/32UF,Economic Development,Telephones,19/03/2020,IJ00094311,7.09,Public Sector Partnership Serivces Limited
South Holland District Council,http://statistics.data.gov.uk/id/local-authority/32UF,Commercialisation,Telephones,19/03/2020,IJ00094311,36.00,Public Sector Partnership Serivces Limited
South Holland District Council,http://statistics.data.gov.uk/id/local-authority/32UF,Environmental Services,Telephones,19/03/2020,IJ00094311,97.20,Public Sector Partnership Serivces Limited
South Holland District Council,http://statistics.data.gov.uk/id/local-authority/32UF,Community Development,Telephones,19/03/2020,IJ00094311,96.24,Public Sector Partnership Serivces Limited
South Holland District Council,http://statistics.data.gov.uk/id/local-authority/32UF,Commercialisation,Telephones,19/03/2020,IJ00094311,38.40,Public Sector Partnership Serivces Limited
South Holland District Council,http://statistics.data.gov.uk/id/local-authority/32UF,Capital,Purchase of Software,26/03/2020,IJ00094533,18459.39,Public Sector Partnership Serivces Limited
South Holland District Council,http://statistics.data.gov.uk/id/local-authority/32UF,Capital,Purchase of Hardware,30/03/2020,IJ00094600,1037.63,Public Sector Partnership Serivces Limited
South Holland District Council,http://statistics.data.gov.uk/id/local-authority/32UF,Environmental Services,Professional & Contractors Fees,12/03/2020,IJ00094050,4714.00,Crowland Parish Council
South Holland District Council,http://statistics.data.gov.uk/id/local-authority/32UF,Environmental Services,Grants and Contributions to Outside Bodies- No Service Recei,12/03/2020,IJ00094051,1000.00,Crowland Parish Council
South Holland District Council,http://statistics.data.gov.uk/id/local-authority/32UF,Asset and Property,Professional & Contractors Fees,12/03/2020,IJ00094051,3750.00,Crowland Parish Council
South Holland District Council,http://statistics.data.gov.uk/id/local-authority/32UF,Environmental Services,Professional & Contractors Fees,12/03/2020,IJ00094051,11250.00,Crowland Parish Council
South Holland District Council,http://statistics.data.gov.uk/id/local-authority/32UF,Capital,Works to Buildings (main Contractor),05/03/2020,IJ00093752,8502.15,D Brown Building Contractors Ltd
South Holland District Council,http://statistics.data.gov.uk/id/local-authority/32UF,Housing Landlord Manager,Electrical Upgrade,05/03/2020,IJ00093793,11783.89,D Brown Building Contractors Ltd
South Holland District Council,http://statistics.data.gov.uk/id/local-authority/32UF,Capital,Works to Buildings (main Contractor),12/03/2020,IJ00093878,9945.00,D Brown Building Contractors Ltd
South Holland District Council,http://statistics.data.gov.uk/id/local-authority/32UF,Capital,Works to Buildings (main Contractor),12/03/2020,IJ00093895,358890.04,D Brown Building Contractors Ltd
South Holland District Council,http://statistics.data.gov.uk/id/local-authority/32UF,Capital,Works to Buildings (main Contractor),12/03/2020,IJ00093975,56160.00,D Brown Building Contractors Ltd
South Holland District Council,http://statistics.data.gov.uk/id/local-authority/32UF,Capital,Works to Buildings (main Contractor),12/03/2020,IJ00093998,36270.00,D Brown Building Contractors Ltd
South Holland District Council,http://statistics.data.gov.uk/id/local-authority/32UF,Capital,Works to Buildings (main Contractor),26/03/2020,IJ00094500,2340.00,D Brown Building Contractors Ltd
South Holland District Council,http://statistics.data.gov.uk/id/local-authority/32UF,Capital,Works to Buildings (main Contractor),26/03/2020,IJ00094511,39585.00,D Brown Building Contractors Ltd
South Holland District Council,http://statistics.data.gov.uk/id/local-authority/32UF,Housing Landlord Manager,Electrical Upgrade,26/03/2020,IJ00094520,5752.44,D Brown Building Contractors Ltd
South Holland District Council,http://statistics.data.gov.uk/id/local-authority/32UF,Capital,Works to Buildings (main Contractor),31/03/2020,IJ00094583,95745.00,D Brown Building Contractors Ltd
South Holland District Council,http://statistics.data.gov.uk/id/local-authority/32UF,Capital,Purchase of Hardware,05/03/2020,IJ00093570,2967.30,Dell Corporation Ltd
South Holland District Council,http://statistics.data.gov.uk/id/local-authority/32UF,Capital,Purchase of Hardware,05/03/2020,IJ00093571,2940.74,Dell Corporation Ltd
South Holland District Council,http://statistics.data.gov.uk/id/local-authority/32UF,Capital,Purchase of Hardware,05/03/2020,IJ00093572,3805.45,Dell Corporation Ltd
South Holland District Council,http://statistics.data.gov.uk/id/local-authority/32UF,Capital,Purchase of Hardware,05/03/2020,IJ00093580,3693.60,Dell Corporation Ltd
South Holland District Council,http://statistics.data.gov.uk/id/local-authority/32UF,ICT and Customer Services,Computer Hardware Purchase,31/03/2020,IJ00094613,1132.45,Dell Corporation Ltd
South Holland District Council,http://statistics.data.gov.uk/id/local-authority/32UF,Finance,Non -Ringfenced Government Grants - RSG,18/03/2020,IJ00094151,-21657.00,Department For Communities & Local Government
South Holland District Council,http://statistics.data.gov.uk/id/local-authority/32UF,Collection Fund,Central Share of NDR Income - Government,18/03/2020,IJ00094151,961521.00,Department For Communities & Local Government
South Holland District Council,http://statistics.data.gov.uk/id/local-authority/32UF,Collection Fund,Transitional Protection Payments,18/03/2020,IJ00094151,159783.00,Department For Communities & Local Government
South Holland District Council,http://statistics.data.gov.uk/id/local-authority/32UF,Collection Fund,Contribution to Deficit (NDR),18/03/2020,IJ00094151,-1796.00,Department For Communities & Local Government
South Holland District Council,http://statistics.data.gov.uk/id/local-authority/32UF,Housing,Grants and Contributions to Outside Bodies- No Service Recei,12/03/2020,IJ00093907,3650.00,Dolphin Mobility East Midlands Ltd
South Holland District Council,http://statistics.data.gov.uk/id/local-authority/32UF,Capital,Works to Buildings (main Contractor),26/03/2020,IJ00094437,1620.00,Dolphin Mobility East Midlands Ltd
South Holland District Council,http://statistics.data.gov.uk/id/local-authority/32UF,Environmental Services,Grounds Maintenance Contract (External),05/03/2020,IJ00093597,897.50,Double Yew Nurseries Ltd
South Holland District Council,http://statistics.data.gov.uk/id/local-authority/32UF,Community Development,Film and Entertainment Costs,12/03/2020,IJ00093914,2025.38,Entertainment One Uk Ltd
South Holland District Council,http://statistics.data.gov.uk/id/local-authority/32UF,Spalding Special Expenses,Electricity,31/03/2020,IJ00094608,571.90,E.On
South Holland District Council,http://statistics.data.gov.uk/id/local-authority/32UF,Community Development,Gas,19/03/2020,IJ00094330,1267.77,Espo Gas And Electricity
South Holland District Council,http://statistics.data.gov.uk/id/local-authority/32UF,HR,Other Employee Expenses,26/03/2020,IJ00094570,55.24,Fideliti Limited
South Holland District Council,http://statistics.data.gov.uk/id/local-authority/32UF,Balance Sheet,Payroll SHDC Child Care,26/03/2020,IJ00094570,1381.00,Fideliti Limited
South Holland District Council,http://statistics.data.gov.uk/id/local-authority/32UF,Capital,Professional Fees,05/03/2020,IJ00093631,1542.00,Focus Consultants 2010 LLP
South Holland District Council,http://statistics.data.gov.uk/id/local-authority/32UF,Capital,Professional Fees,05/03/2020,IJ00093632,1050.00,Focus Consultants 2010 LLP
South Holland District Council,http://statistics.data.gov.uk/id/local-authority/32UF,Capital,Professional Fees,26/03/2020,IJ00094532,1637.00,Focus Consultants 2010 LLP
South Holland District Council,http://statistics.data.gov.uk/id/local-authority/32UF,Capital,Professional Fees,26/03/2020,IJ00094523,1200.00,Focus Consultants 2010 LLP
South Holland District Council,http://statistics.data.gov.uk/id/local-authority/32UF,Capital,Professional Fees,31/03/2020,IJ00094592,1200.00,Focus Consultants 2010 LLP
South Holland District Council,http://statistics.data.gov.uk/id/local-authority/32UF,Environmental Services,Maintenance,12/03/2020,IJ00093985,2138.10,Freight Transport Association Ltd
South Holland District Council,http://statistics.data.gov.uk/id/local-authority/32UF,Asset and Property,Buildings Maintenance - Programmed,05/03/2020,IJ00093786,779.17,Gbsg  Ltd
South Holland District Council,http://statistics.data.gov.uk/id/local-authority/32UF,Environmental Services,Professional & Contractors Fees,12/03/2020,IJ00093837,2235.20,Gbsg  Ltd
South Holland District Council,http://statistics.data.gov.uk/id/local-authority/32UF,Asset and Property,Buildings Maintenance - Programmed,26/03/2020,IJ00094477,2485.20,Glen Farrow UK Ltd
South Holland District Council,http://statistics.data.gov.uk/id/local-authority/32UF,Asset and Property,Buildings Maintenance - Programmed,31/03/2020,IJ00094588,680.00,Glen Farrow UK Ltd
South Holland District Council,http://statistics.data.gov.uk/id/local-authority/32UF,Asset and Property,Buildings Maintenance - Programmed,31/03/2020,IJ00094591,3980.00,Glen Farrow UK Ltd
South Holland District Council,http://statistics.data.gov.uk/id/local-authority/32UF,Housing Landlord Manager,Grounds Maintenance Contract (External),05/03/2020,IJ00093636,995.00,Greenscape Tree Safe Ltd
South Holland District Council,http://statistics.data.gov.uk/id/local-authority/32UF,Housing Landlord Manager,Grounds Maintenance Contract (External),05/03/2020,IJ00093637,750.00,Greenscape Tree Safe Ltd
South Holland District Council,http://statistics.data.gov.uk/id/local-authority/32UF,Planning,Professional & Contractors Fees,05/03/2020,IJ00093734,795.00,Greenscape Tree Safe Ltd
South Holland District Council,http://statistics.data.gov.uk/id/local-authority/32UF,Community Development,Grounds Maintenance Contract (External),05/03/2020,IJ00093795,650.00,Greenscape Tree Safe Ltd
South Holland District Council,http://statistics.data.gov.uk/id/local-authority/32UF,Environmental Services,Grounds Maintenance Contract (External),19/03/2020,IJ00094395,1500.00,Greenscape Tree Safe Ltd
South Holland District Council,http://statistics.data.gov.uk/id/local-authority/32UF,Spalding Special Expenses,Grounds Maintenance Contract (External),19/03/2020,IJ00094396,1400.00,Greenscape Tree Safe Ltd
South Holland District Council,http://statistics.data.gov.uk/id/local-authority/32UF,Housing Landlord Manager,Grounds Maintenance Contract (External),19/03/2020,IJ00094405,800.00,Greenscape Tree Safe Ltd
South Holland District Council,http://statistics.data.gov.uk/id/local-authority/32UF,Environmental Services,Grounds Maintenance Contract (External),26/03/2020,IJ00094489,1500.00,Greenscape Tree Safe Ltd
South Holland District Council,http://statistics.data.gov.uk/id/local-authority/32UF,Environmental Services,Grounds Maintenance Contract (External),26/03/2020,IJ00094489,1500.00,Greenscape Tree Safe Ltd
South Holland District Council,http://statistics.data.gov.uk/id/local-authority/32UF,Environmental Services,Grounds Maintenance Contract (External),26/03/2020,IJ00094491,3150.00,Greenscape Tree Safe Ltd
South Holland District Council,http://statistics.data.gov.uk/id/local-authority/32UF,Environmental Services,Grounds Maintenance Contract (External),26/03/2020,IJ00094491,150.00,Greenscape Tree Safe Ltd
South Holland District Council,http://statistics.data.gov.uk/id/local-authority/32UF,Housing Landlord Manager,Grounds Maintenance Contract (External),31/03/2020,IJ00094594,1500.00,Greenscape Tree Safe Ltd
South Holland District Council,http://statistics.data.gov.uk/id/local-authority/32UF,Economic Development,Grants and Contributions to Outside Bodies- No Service Recei,12/03/2020,IJ00093861,500.00,Heritage Trust Of Lincolnshire Ltd
South Holland District Council,http://statistics.data.gov.uk/id/local-authority/32UF,Community Development,Advertising - Events,12/03/2020,IJ00093861,500.00,Heritage Trust Of Lincolnshire Ltd
South Holland District Council,http://statistics.data.gov.uk/id/local-authority/32UF,Democratic Services,Other Miscellaneous Expenses,19/03/2020,IJ00094314,4219.11,Holbeach & District  Community Association
South Holland District Council,http://statistics.data.gov.uk/id/local-authority/32UF,Housing Landlord Manager,Agency Staff,05/03/2020,IJ00093686,545.38,Integrity Plus Ltd
South Holland District Council,http://statistics.data.gov.uk/id/local-authority/32UF,Housing Landlord Manager,Agency Staff,05/03/2020,IJ00093687,545.38,Integrity Plus Ltd
South Holland District Council,http://statistics.data.gov.uk/id/local-authority/32UF,Environmental Services,Agency Staff,05/03/2020,IJ00093790,705.72,Integrity Plus Ltd
South Holland District Council,http://statistics.data.gov.uk/id/local-authority/32UF,Environmental Services,Agency Staff,05/03/2020,IJ00093818,1143.54,Integrity Plus Ltd
South Holland District Council,http://statistics.data.gov.uk/id/local-authority/32UF,Environmental Services,Agency Staff,19/03/2020,IJ00094056,1768.97,Integrity Plus Ltd
South Holland District Council,http://statistics.data.gov.uk/id/local-authority/32UF,Environmental Services,Agency Staff,19/03/2020,IJ00094057,805.55,Integrity Plus Ltd
South Holland District Council,http://statistics.data.gov.uk/id/local-authority/32UF,Housing Landlord Manager,Agency Staff,19/03/2020,IJ00094221,545.38,Integrity Plus Ltd
South Holland District Council,http://statistics.data.gov.uk/id/local-authority/32UF,Environmental Services,Agency Staff,19/03/2020,IJ00094341,826.21,Integrity Plus Ltd
South Holland District Council,http://statistics.data.gov.uk/id/local-authority/32UF,Environmental Services,Agency Staff,19/03/2020,IJ00094342,738.97,Integrity Plus Ltd
South Holland District Council,http://statistics.data.gov.uk/id/local-authority/32UF,Environmental Services,Agency Staff,31/03/2020,IJ00094638,657.52,Integrity Plus Ltd
South Holland District Council,http://statistics.data.gov.uk/id/local-authority/32UF,Housing Landlord Manager,Agency Staff,31/03/2020,IJ00094703,545.38,Integrity Plus Ltd
South Holland District Council,http://statistics.data.gov.uk/id/local-authority/32UF,Environmental Services,Agency Staff,31/03/2020,IJ00094645,1661.29,Integrity Plus Ltd
South Holland District Council,http://statistics.data.gov.uk/id/local-authority/32UF,Revs and Bens,VAT Customs and Excise,12/03/2020,IJ00093842,697.58,Jacobs Certificated Bailiffs
South Holland District Council,http://statistics.data.gov.uk/id/local-authority/32UF,Revs and Bens,VAT Customs and Excise,12/03/2020,IJ00093843,515.29,Jacobs Certificated Bailiffs
South Holland District Council,http://statistics.data.gov.uk/id/local-authority/32UF,Balance Sheet,VAT Customs and Excise,12/03/2020,IJ00093845,1047.70,Jacobs Certificated Bailiffs
South Holland District Council,http://statistics.data.gov.uk/id/local-authority/32UF,Revs and Bens,VAT Customs and Excise,26/03/2020,IJ00094566,509.17,Jacobs Certificated Bailiffs
South Holland District Council,http://statistics.data.gov.uk/id/local-authority/32UF,Housing Landlord Manager,Materials and Consumables,05/03/2020,IJ00093736,915.00,Jml Hardware Ltd
South Holland District Council,http://statistics.data.gov.uk/id/local-authority/32UF,Revs and Bens,External Audit Fees,05/03/2020,IJ00093774,5137.50,Kpmg LLP
South Holland District Council,http://statistics.data.gov.uk/id/local-authority/32UF,Revs and Bens,External Audit Fees,05/03/2020,IJ00093774,5137.50,Kpmg LLP
South Holland District Council,http://statistics.data.gov.uk/id/local-authority/32UF,Housing,Grants and Contributions- Where a Service is Received,12/03/2020,IJ00094001,1496.00,Language Line Ltd
South Holland District Council,http://statistics.data.gov.uk/id/local-authority/32UF,Housing Landlord Manager,Buildings Maintenance - Responsive,12/03/2020,IJ00094017,785.00,L Fragale General Building & Maintenance
South Holland District Council,http://statistics.data.gov.uk/id/local-authority/32UF,Housing Landlord Manager,Roof Repairs,12/03/2020,IJ00094018,2230.00,L Fragale General Building & Maintenance
South Holland District Council,http://statistics.data.gov.uk/id/local-authority/32UF,Housing Landlord Manager,Buildings Maintenance - Responsive,12/03/2020,IJ00094023,1490.00,L Fragale General Building & Maintenance
South Holland District Council,http://statistics.data.gov.uk/id/local-authority/32UF,Housing Landlord Manager,Buildings Maintenance - Responsive,12/03/2020,IJ00094026,797.00,L Fragale General Building & Maintenance
South Holland District Council,http://statistics.data.gov.uk/id/local-authority/32UF,Democratic Services,Legal Fees,05/03/2020,IJ00093804,809.78,Lincolnshire County Council
South Holland District Council,http://statistics.data.gov.uk/id/local-authority/32UF,Planning,Professional & Contractors Fees,12/03/2020,IJ00093865,9829.00,Lincolnshire County Council
South Holland District Council,http://statistics.data.gov.uk/id/local-authority/32UF,Building Control,Professional & Contractors Fees,12/03/2020,IJ00093866,1286.00,Lincolnshire County Council
South Holland District Council,http://statistics.data.gov.uk/id/local-authority/32UF,Building Control,Professional & Contractors Fees,12/03/2020,IJ00093867,1674.00,Lincolnshire County Council
South Holland District Council,http://statistics.data.gov.uk/id/local-authority/32UF,Environmental Services,Other Miscellaneous Expenses,26/03/2020,IJ00094518,779.35,Lincolnshire County Council
South Holland District Council,http://statistics.data.gov.uk/id/local-authority/32UF,Building Control,Professional & Contractors Fees,31/03/2020,IJ00094603,1978.00,Lincolnshire County Council
South Holland District Council,http://statistics.data.gov.uk/id/local-authority/32UF,ICT and Customer Services,Computer Hardware Maintenance,31/03/2020,IJ00094614,3441.20,Lincolnshire County Council
South Holland District Council,http://statistics.data.gov.uk/id/local-authority/32UF,Housing,Grants and Contributions to Outside Bodies- No Service Recei,26/03/2020,IJ00094568,1165.00,Longstaff  Client Account
South Holland District Council,http://statistics.data.gov.uk/id/local-authority/32UF,Democratic Services,Other Miscellaneous Expenses,19/03/2020,IJ00094078,500.00,Long Sutton Market House Trust
South Holland District Council,http://statistics.data.gov.uk/id/local-authority/32UF,Public Protection,Legal Fees,31/03/2020,IJ00094589,5786.00,Maples Solicitors LLP
South Holland District Council,http://statistics.data.gov.uk/id/local-authority/32UF,Housing Landlord Manager,Buildings Maintenance - Responsive,05/03/2020,IJ00093799,2894.00,M & R Glass & Glazing Ltd
South Holland District Council,http://statistics.data.gov.uk/id/local-authority/32UF,Asset and Property,Buildings Maintenance - Programmed,26/03/2020,IJ00094537,579.95,Newflame
South Holland District Council,http://statistics.data.gov.uk/id/local-authority/32UF,Finance,External Printing and Design Costs,31/03/2020,IJ00094686,1915.00,Newton Press Ltd
South Holland District Council,http://statistics.data.gov.uk/id/local-authority/32UF,Finance,Postages,31/03/2020,IJ00094686,1800.00,Newton Press Ltd
South Holland District Council,http://statistics.data.gov.uk/id/local-authority/32UF,Capital,Works to Buildings (main Contractor),31/03/2020,IJ00094704,4275.00,Obam Domestic Lift Services Ltd
South Holland District Council,http://statistics.data.gov.uk/id/local-authority/32UF,Housing,Grants and Contributions to Outside Bodies- No Service Recei,31/03/2020,IJ00094706,4235.00,Obam Domestic Lift Services Ltd
South Holland District Council,http://statistics.data.gov.uk/id/local-authority/32UF,ICT and Customer Services,Computer Software Licence Costs,05/03/2020,IJ00093622,12108.35,Ocella Ltd
South Holland District Council,http://statistics.data.gov.uk/id/local-authority/32UF,Environmental Services,Professional & Contractors Fees,12/03/2020,IJ00093984,1967.63,Rentokil Initial UK Ltd t a Initial Washroom Hygiene
South Holland District Council,http://statistics.data.gov.uk/id/local-authority/32UF,Housing Landlord Manager,Professional & Contractors Fees,05/03/2020,IJ00093592,900.00,Oglesby & Limb Ltd
South Holland District Council,http://statistics.data.gov.uk/id/local-authority/32UF,Community Development,Film and Entertainment Costs,19/03/2020,IJ00094319,517.27,Studiocanal Limited
South Holland District Council,http://statistics.data.gov.uk/id/local-authority/32UF,Housing Landlord Manager,Materials and Consumables,05/03/2020,IJ00093645,651.05,Rexel Uk Ltd
South Holland District Council,http://statistics.data.gov.uk/id/local-authority/32UF,Housing Landlord Manager,Materials and Consumables,26/03/2020,IJ00094455,1167.35,Rexel Uk Ltd
South Holland District Council,http://statistics.data.gov.uk/id/local-authority/32UF,Housing Landlord Manager,Materials and Consumables,31/03/2020,IJ00094685,1613.28,Rexel Uk Ltd
South Holland District Council,http://statistics.data.gov.uk/id/local-authority/32UF,Housing Landlord Manager,Materials and Consumables,31/03/2020,IJ00094658,1815.12,Rexel Uk Ltd
South Holland District Council,http://statistics.data.gov.uk/id/local-authority/32UF,Housing Landlord Manager,Materials and Consumables,31/03/2020,IJ00094660,857.14,Rexel Uk Ltd
South Holland District Council,http://statistics.data.gov.uk/id/local-authority/32UF,Environmental Services,Other Miscellaneous Expenses,31/03/2020,IJ00094619,1245.00,Rigby Taylor Limited
South Holland District Council,http://statistics.data.gov.uk/id/local-authority/32UF,Environmental Services,Other Miscellaneous Expenses,31/03/2020,IJ00094648,1245.00,Rigby Taylor Limited
South Holland District Council,http://statistics.data.gov.uk/id/local-authority/32UF,Democratic Services,Other Miscellaneous Expenses,12/03/2020,IJ00094028,500.00,S.A.D.O.S.
South Holland District Council,http://statistics.data.gov.uk/id/local-authority/32UF,Community Development,Performers and Entertainers Fees,26/03/2020,IJ00094553,998.90,Seabright Productions Ltd
South Holland District Council,http://statistics.data.gov.uk/id/local-authority/32UF,Democratic Services,Stationery,12/03/2020,IJ00094012,1049.55,Shaw & Sons Ltd
South Holland District Council,http://statistics.data.gov.uk/id/local-authority/32UF,Community Development,Grants and Contributions to Outside Bodies- No Service Recei,26/03/2020,IJ00094442,14865.00,Citizens Advice South Lincolnshire
South Holland District Council,http://statistics.data.gov.uk/id/local-authority/32UF,Community Development,Film and Entertainment Costs,05/03/2020,IJ00093713,547.33,Sony Pictures Releasing
South Holland District Council,http://statistics.data.gov.uk/id/local-authority/32UF,Community Development,Film and Entertainment Costs,05/03/2020,IJ00093715,2782.33,Sony Pictures Releasing
South Holland District Council,http://statistics.data.gov.uk/id/local-authority/32UF,Capital,Works to Buildings (main Contractor),26/03/2020,IJ00094529,937.00,Spalding Air Conditioning Services Ltd
South Holland District Council,http://statistics.data.gov.uk/id/local-authority/32UF,Democratic Services,Other Miscellaneous Expenses,05/03/2020,IJ00093781,500.00,St Peter & St Paul Church
South Holland District Council,http://statistics.data.gov.uk/id/local-authority/32UF,Housing,Grants and Contributions to Outside Bodies- No Service Recei,05/03/2020,IJ00093701,8600.38,Stuart Taplin Plumbing and Building Maintenance
South Holland District Council,http://statistics.data.gov.uk/id/local-authority/32UF,Asset and Property,Buildings Maintenance - Programmed,05/03/2020,IJ00093785,1275.10,Stuart Taplin Plumbing and Building Maintenance
South Holland District Council,http://statistics.data.gov.uk/id/local-authority/32UF,Housing Landlord Manager,Buildings Maintenance - Responsive,05/03/2020,IJ00093815,1884.81,Stuart Taplin Plumbing and Building Maintenance
South Holland District Council,http://statistics.data.gov.uk/id/local-authority/32UF,Housing,Grants and Contributions to Outside Bodies- No Service Recei,19/03/2020,IJ00094118,1544.47,Stuart Taplin Plumbing and Building Maintenance
South Holland District Council,http://statistics.data.gov.uk/id/local-authority/32UF,Housing Landlord Manager,Buildings Maintenance - Responsive,19/03/2020,IJ00094380,888.25,Stuart Taplin Plumbing and Building Maintenance
South Holland District Council,http://statistics.data.gov.uk/id/local-authority/32UF,Housing,Grants and Contributions to Outside Bodies- No Service Recei,26/03/2020,IJ00094508,10000.00,Stuart Taplin Plumbing and Building Maintenance
South Holland District Council,http://statistics.data.gov.uk/id/local-authority/32UF,Environmental Services,Agency Staff,05/03/2020,IJ00093672,3220.37,The Best Connection Group Ltd
South Holland District Council,http://statistics.data.gov.uk/id/local-authority/32UF,Environmental Services,Agency Staff,12/03/2020,IJ00094004,2979.77,The Best Connection Group Ltd
South Holland District Council,http://statistics.data.gov.uk/id/local-authority/32UF,Environmental Services,Agency Staff,19/03/2020,IJ00094420,3583.26,The Best Connection Group Ltd
South Holland District Council,http://statistics.data.gov.uk/id/local-authority/32UF,Environmental Services,Agency Staff,26/03/2020,IJ00094492,3536.78,The Best Connection Group Ltd
South Holland District Council,http://statistics.data.gov.uk/id/local-authority/32UF,Environmental Services,Agency Staff,31/03/2020,IJ00094666,3349.80,The Best Connection Group Ltd
South Holland District Council,http://statistics.data.gov.uk/id/local-authority/32UF,Community Development,Public Courses and Workshops,26/03/2020,IJ00094549,1398.00,University Of Lincoln
South Holland District Council,http://statistics.data.gov.uk/id/local-authority/32UF,Community Development,Subscriptions to Organisations and Other Bodies,26/03/2020,IJ00094552,500.00,University Of Lincoln
South Holland District Council,http://statistics.data.gov.uk/id/local-authority/32UF,Capital,Professional Fees,26/03/2020,IJ00094425,3187.00,Thornton-Firkin Llp
South Holland District Council,http://statistics.data.gov.uk/id/local-authority/32UF,Capital,Professional Fees,26/03/2020,IJ00094446,4388.00,Thornton-Firkin Llp
South Holland District Council,http://statistics.data.gov.uk/id/local-authority/32UF,Community Development,Performers and Entertainers Fees,12/03/2020,IJ00093910,1500.00,Time & Talent Agency Ltd
South Holland District Council,http://statistics.data.gov.uk/id/local-authority/32UF,Environmental Services,Furniture and Equipment,05/03/2020,IJ00093675,769.72,Transmissions Bearings Chains Ltd
South Holland District Council,http://statistics.data.gov.uk/id/local-authority/32UF,Housing Landlord Manager,Furniture and Equipment,31/03/2020,IJ00094702,3729.75,Transmissions Bearings Chains Ltd
South Holland District Council,http://statistics.data.gov.uk/id/local-authority/32UF,ICT and Customer Services,Computer Software Licence Costs,12/03/2020,IJ00093883,8243.93,Trustmarque Solutions Ltd
South Holland District Council,http://statistics.data.gov.uk/id/local-authority/32UF,Housing Landlord Manager,Furniture and Equipment,31/03/2020,IJ00094652,853.06,Tunstall Healthcare UK Ltd
South Holland District Council,http://statistics.data.gov.uk/id/local-authority/32UF,Spalding Special Expenses,Buildings Maintenance - Responsive,05/03/2020,IJ00093671,900.00,Tyrrell Contractors Ltd
South Holland District Council,http://statistics.data.gov.uk/id/local-authority/32UF,Asset and Property,Buildings Maintenance - Programmed,05/03/2020,IJ00093765,550.00,Tyrrell Contractors Ltd
South Holland District Council,http://statistics.data.gov.uk/id/local-authority/32UF,Spalding Special Expenses,Buildings Maintenance - Responsive,26/03/2020,IJ00094522,2400.00,Tyrrell Contractors Ltd
South Holland District Council,http://statistics.data.gov.uk/id/local-authority/32UF,Finance,Fees and Charges General,12/03/2020,IJ00093879,-27.81,Unison
South Holland District Council,http://statistics.data.gov.uk/id/local-authority/32UF,Balance Sheet,Payroll-Unison,12/03/2020,IJ00093879,927.00,Unison
South Holland District Council,http://statistics.data.gov.uk/id/local-authority/32UF,Finance,Fees and Charges General,26/03/2020,IJ00094579,-27.81,Unison
South Holland District Council,http://statistics.data.gov.uk/id/local-authority/32UF,Balance Sheet,Payroll-Unison,26/03/2020,IJ00094579,927.00,Unison
South Holland District Council,http://statistics.data.gov.uk/id/local-authority/32UF,Community Development,Film and Entertainment Costs,19/03/2020,IJ00094323,1619.06,Universal Pictures International Uk
South Holland District Council,http://statistics.data.gov.uk/id/local-authority/32UF,Environmental Services,Tyres,31/03/2020,IJ00094593,153.00,Vaculug Technologies Ltd
South Holland District Council,http://statistics.data.gov.uk/id/local-authority/32UF,Environmental Services,Tyres,31/03/2020,IJ00094593,27.00,Vaculug Technologies Ltd
South Holland District Council,http://statistics.data.gov.uk/id/local-authority/32UF,Environmental Services,Tyres,31/03/2020,IJ00094593,3003.00,Vaculug Technologies Ltd
South Holland District Council,http://statistics.data.gov.uk/id/local-authority/32UF,Environmental Services,Tyres,31/03/2020,IJ00094593,400.00,Vaculug Technologies Ltd
South Holland District Council,http://statistics.data.gov.uk/id/local-authority/32UF,Environmental Services,Tyres,31/03/2020,IJ00094593,21.00,Vaculug Technologies Ltd
South Holland District Council,http://statistics.data.gov.uk/id/local-authority/32UF,Planning,Telephones,19/03/2020,IJ00094326,48.00,Vodafone Ltd Corporate
South Holland District Council,http://statistics.data.gov.uk/id/local-authority/32UF,Chief Executive,Telephones,19/03/2020,IJ00094326,27.00,Vodafone Ltd Corporate
South Holland District Council,http://statistics.data.gov.uk/id/local-authority/32UF,Housing Landlord Manager,Telephones,19/03/2020,IJ00094326,30.12,Vodafone Ltd Corporate
South Holland District Council,http://statistics.data.gov.uk/id/local-authority/32UF,Building Control,Telephones,19/03/2020,IJ00094326,8.50,Vodafone Ltd Corporate
South Holland District Council,http://statistics.data.gov.uk/id/local-authority/32UF,Democratic Services,Telephones,19/03/2020,IJ00094326,442.99,Vodafone Ltd Corporate
South Holland District Council,http://statistics.data.gov.uk/id/local-authority/32UF,Democratic Services,Telephones,19/03/2020,IJ00094326,22.50,Vodafone Ltd Corporate
South Holland District Council,http://statistics.data.gov.uk/id/local-authority/32UF,Asset and Property,Telephones,19/03/2020,IJ00094326,27.00,Vodafone Ltd Corporate
South Holland District Council,http://statistics.data.gov.uk/id/local-authority/32UF,Planning,Telephones,19/03/2020,IJ00094326,18.50,Vodafone Ltd Corporate
South Holland District Council,http://statistics.data.gov.uk/id/local-authority/32UF,Planning,Telephones,19/03/2020,IJ00094326,10.00,Vodafone Ltd Corporate
South Holland District Council,http://statistics.data.gov.uk/id/local-authority/32UF,Building Control,Telephones,19/03/2020,IJ00094326,17.00,Vodafone Ltd Corporate
South Holland District Council,http://statistics.data.gov.uk/id/local-authority/32UF,Environmental Services,Telephones,19/03/2020,IJ00094326,147.50,Vodafone Ltd Corporate
South Holland District Council,http://statistics.data.gov.uk/id/local-authority/32UF,Environmental Services,Telephones,19/03/2020,IJ00094326,11.00,Vodafone Ltd Corporate
South Holland District Council,http://statistics.data.gov.uk/id/local-authority/32UF,Community Development,Telephones,19/03/2020,IJ00094326,10.00,Vodafone Ltd Corporate
South Holland District Council,http://statistics.data.gov.uk/id/local-authority/32UF,Environmental Services,Telephones,19/03/2020,IJ00094326,16.50,Vodafone Ltd Corporate
South Holland District Council,http://statistics.data.gov.uk/id/local-authority/32UF,Housing Landlord Manager,Telephones,19/03/2020,IJ00094326,87.48,Vodafone Ltd Corporate
South Holland District Council,http://statistics.data.gov.uk/id/local-authority/32UF,Housing,Telephones,19/03/2020,IJ00094326,29.36,Vodafone Ltd Corporate
South Holland District Council,http://statistics.data.gov.uk/id/local-authority/32UF,Housing,Telephones,19/03/2020,IJ00094326,15.03,Vodafone Ltd Corporate
South Holland District Council,http://statistics.data.gov.uk/id/local-authority/32UF,Housing Landlord Manager,Telephones,19/03/2020,IJ00094326,123.79,Vodafone Ltd Corporate
South Holland District Council,http://statistics.data.gov.uk/id/local-authority/32UF,Environmental Services,Telephones,19/03/2020,IJ00094326,110.00,Vodafone Ltd Corporate
South Holland District Council,http://statistics.data.gov.uk/id/local-authority/32UF,Environmental Services,Telephones,19/03/2020,IJ00094326,50.00,Vodafone Ltd Corporate
South Holland District Council,http://statistics.data.gov.uk/id/local-authority/32UF,Environmental Services,Telephones,19/03/2020,IJ00094326,75.00,Vodafone Ltd Corporate
South Holland District Council,http://statistics.data.gov.uk/id/local-authority/32UF,Public Protection,Telephones,19/03/2020,IJ00094326,37.00,Vodafone Ltd Corporate
South Holland District Council,http://statistics.data.gov.uk/id/local-authority/32UF,Public Protection,Telephones,19/03/2020,IJ00094326,27.10,Vodafone Ltd Corporate
South Holland District Council,http://statistics.data.gov.uk/id/local-authority/32UF,Public Protection,Telephones,19/03/2020,IJ00094326,28.50,Vodafone Ltd Corporate
South Holland District Council,http://statistics.data.gov.uk/id/local-authority/32UF,Public Protection,Telephones,19/03/2020,IJ00094326,8.50,Vodafone Ltd Corporate
South Holland District Council,http://statistics.data.gov.uk/id/local-authority/32UF,Community Development,Telephones,19/03/2020,IJ00094326,25.89,Vodafone Ltd Corporate
South Holland District Council,http://statistics.data.gov.uk/id/local-authority/32UF,Community Development,Telephones,19/03/2020,IJ00094326,38.00,Vodafone Ltd Corporate
South Holland District Council,http://statistics.data.gov.uk/id/local-authority/32UF,Economic Development,Telephones,19/03/2020,IJ00094326,29.90,Vodafone Ltd Corporate
South Holland District Council,http://statistics.data.gov.uk/id/local-authority/32UF,Housing Landlord Manager,Telephones,19/03/2020,IJ00094326,25.50,Vodafone Ltd Corporate
South Holland District Council,http://statistics.data.gov.uk/id/local-authority/32UF,Democratic Services,Telephones,19/03/2020,IJ00094326,8.50,Vodafone Ltd Corporate
South Holland District Council,http://statistics.data.gov.uk/id/local-authority/32UF,Building Control,Telephones,19/03/2020,IJ00094326,8.50,Vodafone Ltd Corporate
South Holland District Council,http://statistics.data.gov.uk/id/local-authority/32UF,Housing Landlord Manager,Telephones,19/03/2020,IJ00094326,10.00,Vodafone Ltd Corporate
South Holland District Council,http://statistics.data.gov.uk/id/local-authority/32UF,Housing Landlord Manager,Telephones,19/03/2020,IJ00094326,8.50,Vodafone Ltd Corporate
South Holland District Council,http://statistics.data.gov.uk/id/local-authority/32UF,Housing Landlord Manager,Telephones,19/03/2020,IJ00094326,12.90,Vodafone Ltd Corporate
South Holland District Council,http://statistics.data.gov.uk/id/local-authority/32UF,Building Control,Telephones,19/03/2020,IJ00094326,17.00,Vodafone Ltd Corporate
South Holland District Council,http://statistics.data.gov.uk/id/local-authority/32UF,Housing,Telephones,19/03/2020,IJ00094326,10.00,Vodafone Ltd Corporate
South Holland District Council,http://statistics.data.gov.uk/id/local-authority/32UF,Housing,Telephones,19/03/2020,IJ00094326,8.50,Vodafone Ltd Corporate
South Holland District Council,http://statistics.data.gov.uk/id/local-authority/32UF,Public Protection,Telephones,19/03/2020,IJ00094326,10.12,Vodafone Ltd Corporate
South Holland District Council,http://statistics.data.gov.uk/id/local-authority/32UF,Housing Landlord Manager,Telephones,19/03/2020,IJ00094326,138.24,Vodafone Ltd Corporate
South Holland District Council,http://statistics.data.gov.uk/id/local-authority/32UF,Community Development,Telephones,19/03/2020,IJ00094326,50.00,Vodafone Ltd Corporate
South Holland District Council,http://statistics.data.gov.uk/id/local-authority/32UF,Housing Landlord Manager,Telephones,19/03/2020,IJ00094326,52.77,Vodafone Ltd Corporate
South Holland District Council,http://statistics.data.gov.uk/id/local-authority/32UF,Communications,Telephones,19/03/2020,IJ00094326,20.00,Vodafone Ltd Corporate
South Holland District Council,http://statistics.data.gov.uk/id/local-authority/32UF,Environmental Services,Telephones,19/03/2020,IJ00094326,62.97,Vodafone Ltd Corporate
South Holland District Council,http://statistics.data.gov.uk/id/local-authority/32UF,Corporate Improvement and Performance,Telephones,19/03/2020,IJ00094326,62.26,Vodafone Ltd Corporate
South Holland District Council,http://statistics.data.gov.uk/id/local-authority/32UF,ICT and Customer Services,Telephones,19/03/2020,IJ00094326,22.01,Vodafone Ltd Corporate
South Holland District Council,http://statistics.data.gov.uk/id/local-authority/32UF,ICT and Customer Services,Telephones,19/03/2020,IJ00094326,22.91,Vodafone Ltd Corporate
South Holland District Council,http://statistics.data.gov.uk/id/local-authority/32UF,Commercialisation,Telephones,19/03/2020,IJ00094326,18.50,Vodafone Ltd Corporate
South Holland District Council,http://statistics.data.gov.uk/id/local-authority/32UF,Chief Executive,Telephones,19/03/2020,IJ00094326,66.00,Vodafone Ltd Corporate
South Holland District Council,http://statistics.data.gov.uk/id/local-authority/32UF,Economic Development,Telephones,19/03/2020,IJ00094326,8.50,Vodafone Ltd Corporate
South Holland District Council,http://statistics.data.gov.uk/id/local-authority/32UF,Commercialisation,Telephones,19/03/2020,IJ00094326,10.00,Vodafone Ltd Corporate
South Holland District Council,http://statistics.data.gov.uk/id/local-authority/32UF,Commercialisation,Telephones,19/03/2020,IJ00094326,20.00,Vodafone Ltd Corporate
South Holland District Council,http://statistics.data.gov.uk/id/local-authority/32UF,Environmental Services,Telephones,19/03/2020,IJ00094326,53.50,Vodafone Ltd Corporate
South Holland District Council,http://statistics.data.gov.uk/id/local-authority/32UF,Democratic Services,Telephones,19/03/2020,IJ00094326,20.00,Vodafone Ltd Corporate
South Holland District Council,http://statistics.data.gov.uk/id/local-authority/32UF,Asset and Property,Telephones,19/03/2020,IJ00094326,5.50,Vodafone Ltd Corporate
South Holland District Council,http://statistics.data.gov.uk/id/local-authority/32UF,ICT and Customer Services,Telephones,19/03/2020,IJ00094326,51.15,Vodafone Ltd Corporate
South Holland District Council,http://statistics.data.gov.uk/id/local-authority/32UF,Corporate Improvement and Performance,Telephones,19/03/2020,IJ00094326,10.00,Vodafone Ltd Corporate
South Holland District Council,http://statistics.data.gov.uk/id/local-authority/32UF,Corporate Improvement and Performance,Telephones,19/03/2020,IJ00094326,35.50,Vodafone Ltd Corporate
South Holland District Council,http://statistics.data.gov.uk/id/local-authority/32UF,Commercialisation,Telephones,19/03/2020,IJ00094326,8.50,Vodafone Ltd Corporate
South Holland District Council,http://statistics.data.gov.uk/id/local-authority/32UF,Commercialisation,Telephones,19/03/2020,IJ00094326,8.50,Vodafone Ltd Corporate
South Holland District Council,http://statistics.data.gov.uk/id/local-authority/32UF,Corporate Improvement and Performance,Telephones,19/03/2020,IJ00094326,10.00,Vodafone Ltd Corporate
South Holland District Council,http://statistics.data.gov.uk/id/local-authority/32UF,Housing Landlord Manager,Postages,19/03/2020,IJ00094084,1901.00,Welland Print Limited
South Holland District Council,http://statistics.data.gov.uk/id/local-authority/32UF,Housing Landlord Manager,External Printing and Design Costs,19/03/2020,IJ00094084,1360.00,Welland Print Limited
South Holland District Council,http://statistics.data.gov.uk/id/local-authority/32UF,Environmental Services,Professional & Contractors Fees,12/03/2020,IJ00093886,1570.00,West & East Anglian Asbestos Removals Ltd
South Holland District Council,http://statistics.data.gov.uk/id/local-authority/32UF,Environmental Services,Professional & Contractors Fees,19/03/2020,IJ00094262,985.00,West & East Anglian Asbestos Removals Ltd
South Holland District Council,http://statistics.data.gov.uk/id/local-authority/32UF,Environmental Services,Professional & Contractors Fees,19/03/2020,IJ00094270,895.00,West & East Anglian Asbestos Removals Ltd
South Holland District Council,http://statistics.data.gov.uk/id/local-authority/32UF,Housing Landlord Manager,Asbestos works HRA,19/03/2020,IJ00094397,950.00,West & East Anglian Asbestos Removals Ltd
South Holland District Council,http://statistics.data.gov.uk/id/local-authority/32UF,Environmental Services,Professional & Contractors Fees,31/03/2020,IJ00094678,895.00,West & East Anglian Asbestos Removals Ltd
South Holland District Council,http://statistics.data.gov.uk/id/local-authority/32UF,Environmental Services,Professional & Contractors Fees,31/03/2020,IJ00094679,575.00,West & East Anglian Asbestos Removals Ltd
South Holland District Council,http://statistics.data.gov.uk/id/local-authority/32UF,Finance,Professional & Contractors Fees,19/03/2020,IJ00094173,3785.00,Wilks Head & Eve LLp
South Holland District Council,http://statistics.data.gov.uk/id/local-authority/32UF,Housing Landlord Manager,Roof Repairs,05/03/2020,IJ00093702,580.00,Wrights & Holbeach Asphalt Ltd
South Holland District Council,http://statistics.data.gov.uk/id/local-authority/32UF,Housing Landlord Manager,Roof Repairs,05/03/2020,IJ00093705,884.00,Wrights & Holbeach Asphalt Ltd
South Holland District Council,http://statistics.data.gov.uk/id/local-authority/32UF,Housing Landlord Manager,Roof Repairs,19/03/2020,IJ00094147,1300.00,Wrights & Holbeach Asphalt Ltd
South Holland District Council,http://statistics.data.gov.uk/id/local-authority/32UF,Democratic Services,Other Miscellaneous Expenses,19/03/2020,IJ00094153,800.00,Pinchbeck Carnival Association
South Holland District Council,http://statistics.data.gov.uk/id/local-authority/32UF,Finance,Business Rates Tariff,18/03/2020,IJ00094150,463874.00,Lincolnshire County Council
South Holland District Council,http://statistics.data.gov.uk/id/local-authority/32UF,Finance,Other Miscellaneous Expenses,09/03/2020,IJ00093835,28328.36,Lloyds TSB
South Holland District Council,http://statistics.data.gov.uk/id/local-authority/32UF,Finance,Other Miscellaneous Expenses,31/03/2020,IJ00094646,24385.32,Lloyds TSB
South Holland District Council,http://statistics.data.gov.uk/id/local-authority/32UF,Planning,Telephones,19/03/2020,IJ00094392,4.24,Daisy Communications Ltd
South Holland District Council,http://statistics.data.gov.uk/id/local-authority/32UF,Housing Landlord Manager,Telephones,19/03/2020,IJ00094392,505.10,Daisy Communications Ltd
South Holland District Council,http://statistics.data.gov.uk/id/local-authority/32UF,Housing Landlord Manager,Telephones,19/03/2020,IJ00094392,138.85,Daisy Communications Ltd
South Holland District Council,http://statistics.data.gov.uk/id/local-authority/32UF,Finance,Telephones,19/03/2020,IJ00094392,1024.95,Daisy Communications Ltd
South Holland District Council,http://statistics.data.gov.uk/id/local-authority/32UF,Public Protection,Telephones,19/03/2020,IJ00094392,8.50,Daisy Communications Ltd
South Holland District Council,http://statistics.data.gov.uk/id/local-authority/32UF,Asset and Property,Telephones,19/03/2020,IJ00094392,8.49,Daisy Communications Ltd
South Holland District Council,http://statistics.data.gov.uk/id/local-authority/32UF,Asset and Property,Telephones,19/03/2020,IJ00094392,8.49,Daisy Communications Ltd
South Holland District Council,http://statistics.data.gov.uk/id/local-authority/32UF,Building Control,Telephones,19/03/2020,IJ00094392,4.22,Daisy Communications Ltd
South Holland District Council,http://statistics.data.gov.uk/id/local-authority/32UF,Environmental Services,Telephones,19/03/2020,IJ00094392,8.49,Daisy Communications Ltd
South Holland District Council,http://statistics.data.gov.uk/id/local-authority/32UF,Housing Landlord Manager,Telephones,19/03/2020,IJ00094392,8.49,Daisy Communications Ltd
South Holland District Council,http://statistics.data.gov.uk/id/local-authority/32UF,Environmental Services,Telephones,19/03/2020,IJ00094392,9.55,Daisy Communications Ltd
South Holland District Council,http://statistics.data.gov.uk/id/local-authority/32UF,Environmental Services,Telephones,19/03/2020,IJ00094392,8.49,Daisy Communications Ltd
South Holland District Council,http://statistics.data.gov.uk/id/local-authority/32UF,Public Protection,Telephones,19/03/2020,IJ00094392,8.49,Daisy Communications Ltd
South Holland District Council,http://statistics.data.gov.uk/id/local-authority/32UF,Housing Landlord Manager,Telephones,19/03/2020,IJ00094392,8.49,Daisy Communications Ltd
South Holland District Council,http://statistics.data.gov.uk/id/local-authority/32UF,Asset and Property,Telephones,19/03/2020,IJ00094392,8.51,Daisy Communications Ltd
South Holland District Council,http://statistics.data.gov.uk/id/local-authority/32UF,Housing Landlord Manager,Telephones,19/03/2020,IJ00094392,11.79,Daisy Communications Ltd
South Holland District Council,http://statistics.data.gov.uk/id/local-authority/32UF,Finance,Telephones,19/03/2020,IJ00094392,8.49,Daisy Communications Ltd
South Holland District Council,http://statistics.data.gov.uk/id/local-authority/32UF,Finance,Telephones,19/03/2020,IJ00094392,93.41,Daisy Communications Ltd
South Holland District Council,http://statistics.data.gov.uk/id/local-authority/32UF,Finance,Telephones,19/03/2020,IJ00094392,8.49,Daisy Communications Ltd
South Holland District Council,http://statistics.data.gov.uk/id/local-authority/32UF,Community Development,Telephones,19/03/2020,IJ00094392,8.49,Daisy Communications Ltd
South Holland District Council,http://statistics.data.gov.uk/id/local-authority/32UF,Community Development,Telephones,19/03/2020,IJ00094392,33.96,Daisy Communications Ltd
South Holland District Council,http://statistics.data.gov.uk/id/local-authority/32UF,Community Development,Telephones,19/03/2020,IJ00094392,8.49,Daisy Communications Ltd
South Holland District Council,http://statistics.data.gov.uk/id/local-authority/32UF,Community Development,Telephones,19/03/2020,IJ00094392,17.22,Daisy Communications Ltd
South Holland District Council,http://statistics.data.gov.uk/id/local-authority/32UF,Communications,Telephones,19/03/2020,IJ00094392,8.49,Daisy Communications Ltd
South Holland District Council,http://statistics.data.gov.uk/id/local-authority/32UF,Environmental Services,Professional & Contractors Fees,05/03/2020,IJ00093737,1012.67,Kings Armoured Security Services Ltd
South Holland District Council,http://statistics.data.gov.uk/id/local-authority/32UF,Commercialisation,Agency Staff,12/03/2020,IJ00093980,916.56,Hays Specialist Recruitment Limited
South Holland District Council,http://statistics.data.gov.uk/id/local-authority/32UF,Commercialisation,Agency Staff,12/03/2020,IJ00093981,1250.24,Hays Specialist Recruitment Limited
South Holland District Council,http://statistics.data.gov.uk/id/local-authority/32UF,Commercialisation,Agency Staff,12/03/2020,IJ00093982,1389.15,Hays Specialist Recruitment Limited
South Holland District Council,http://statistics.data.gov.uk/id/local-authority/32UF,Commercialisation,Agency Staff,12/03/2020,IJ00093983,570.67,Hays Specialist Recruitment Limited
South Holland District Council,http://statistics.data.gov.uk/id/local-authority/32UF,Commercialisation,Agency Staff,19/03/2020,IJ00094218,1395.90,Hays Specialist Recruitment Limited
South Holland District Council,http://statistics.data.gov.uk/id/local-authority/32UF,Commercialisation,Agency Staff,19/03/2020,IJ00094219,926.10,Hays Specialist Recruitment Limited
South Holland District Council,http://statistics.data.gov.uk/id/local-authority/32UF,Commercialisation,Agency Staff,19/03/2020,IJ00094400,1395.90,Hays Specialist Recruitment Limited
South Holland District Council,http://statistics.data.gov.uk/id/local-authority/32UF,Commercialisation,Agency Staff,31/03/2020,IJ00094657,795.96,Hays Specialist Recruitment Limited
South Holland District Council,http://statistics.data.gov.uk/id/local-authority/32UF,Commercialisation,Agency Staff,31/03/2020,IJ00094663,1852.20,Hays Specialist Recruitment Limited
South Holland District Council,http://statistics.data.gov.uk/id/local-authority/32UF,Commercialisation,Agency Staff,31/03/2020,IJ00094665,1389.15,Hays Specialist Recruitment Limited
South Holland District Council,http://statistics.data.gov.uk/id/local-authority/32UF,Commercialisation,Agency Staff,31/03/2020,IJ00094667,892.44,Hays Specialist Recruitment Limited
South Holland District Council,http://statistics.data.gov.uk/id/local-authority/32UF,Commercialisation,Agency Staff,31/03/2020,IJ00094673,892.44,Hays Specialist Recruitment Limited
South Holland District Council,http://statistics.data.gov.uk/id/local-authority/32UF,Capital,Purchase of Hardware,12/03/2020,IJ00094013,516.00,Walters Ltd
South Holland District Council,http://statistics.data.gov.uk/id/local-authority/32UF,Housing Landlord Manager,Buildings Maintenance - Responsive,26/03/2020,IJ00094530,660.00,Paul Sharpe Painter and Decorator
South Holland District Council,http://statistics.data.gov.uk/id/local-authority/32UF,Asset and Property,Furniture and Equipment,05/03/2020,IJ00093764,5723.55,E.on Energy Solutions Ltd  Highway Lighting
South Holland District Council,http://statistics.data.gov.uk/id/local-authority/32UF,Asset and Property,Furniture and Equipment,19/03/2020,IJ00094189,995.00,E.on Energy Solutions Ltd  Highway Lighting
South Holland District Council,http://statistics.data.gov.uk/id/local-authority/32UF,Housing Landlord Manager,Cleaning Contract,05/03/2020,IJ00093677,586.98,Veolia ES UK Ltd
South Holland District Council,http://statistics.data.gov.uk/id/local-authority/32UF,Housing Landlord Manager,Interest payable and Similar Charges,31/03/2020,IJ00094644,1173734.40,United Kingdom Debt Management Office
South Holland District Council,http://statistics.data.gov.uk/id/local-authority/32UF,Capital,Works to Buildings (main Contractor),23/03/2020,IJ00094080,6377.09,M P L Home Improvements
South Holland District Council,http://statistics.data.gov.uk/id/local-authority/32UF,Housing,Grants and Contributions to Outside Bodies- No Service Recei,23/03/2020,IJ00094081,10000.00,M P L Home Improvements
South Holland District Council,http://statistics.data.gov.uk/id/local-authority/32UF,Housing,Grants and Contributions to Outside Bodies- No Service Recei,26/03/2020,IJ00094506,5000.00,M P L Home Improvements
South Holland District Council,http://statistics.data.gov.uk/id/local-authority/32UF,Housing,Grants and Contributions to Outside Bodies- No Service Recei,26/03/2020,IJ00094507,10000.00,M P L Home Improvements
South Holland District Council,http://statistics.data.gov.uk/id/local-authority/32UF,Community Development,Furniture and Equipment,19/03/2020,IJ00094295,6191.20,Pearce Hire
South Holland District Council,http://statistics.data.gov.uk/id/local-authority/32UF,Housing Landlord Manager,Staff Training Expenses,05/03/2020,IJ00093769,600.00,Buckles Solicitors LLP
South Holland District Council,http://statistics.data.gov.uk/id/local-authority/32UF,Capital,Works to Buildings (main Contractor),12/03/2020,IJ00093952,1588.00,Manor Roofing Ltd
South Holland District Council,http://statistics.data.gov.uk/id/local-authority/32UF,Capital,Works to Buildings (main Contractor),12/03/2020,IJ00093953,1975.00,Manor Roofing Ltd
South Holland District Council,http://statistics.data.gov.uk/id/local-authority/32UF,Capital,Works to Buildings (main Contractor),31/03/2020,IJ00094582,1395.00,Manor Roofing Ltd
South Holland District Council,http://statistics.data.gov.uk/id/local-authority/32UF,Capital,Works to Buildings (main Contractor),31/03/2020,IJ00094584,3044.00,Manor Roofing Ltd
South Holland District Council,http://statistics.data.gov.uk/id/local-authority/32UF,Capital,Works to Buildings (main Contractor),31/03/2020,IJ00094585,845.00,Manor Roofing Ltd
South Holland District Council,http://statistics.data.gov.uk/id/local-authority/32UF,Capital,Works to Buildings (main Contractor),31/03/2020,IJ00094604,3044.00,Manor Roofing Ltd
South Holland District Council,http://statistics.data.gov.uk/id/local-authority/32UF,Housing Landlord Manager,Materials and Consumables,05/03/2020,IJ00093634,3106.98,Gibbs and Dandy
South Holland District Council,http://statistics.data.gov.uk/id/local-authority/32UF,Housing Landlord Manager,Materials and Consumables,05/03/2020,IJ00093800,194.74,Gibbs and Dandy
South Holland District Council,http://statistics.data.gov.uk/id/local-authority/32UF,Housing Landlord Manager,Materials and Consumables,05/03/2020,IJ00093800,1004.03,Gibbs and Dandy
South Holland District Council,http://statistics.data.gov.uk/id/local-authority/32UF,Housing Landlord Manager,Materials and Consumables,19/03/2020,IJ00094199,1135.97,Gibbs and Dandy
South Holland District Council,http://statistics.data.gov.uk/id/local-authority/32UF,Housing Landlord Manager,Materials and Consumables,19/03/2020,IJ00094199,4229.02,Gibbs and Dandy
South Holland District Council,http://statistics.data.gov.uk/id/local-authority/32UF,Housing Landlord Manager,Materials and Consumables,19/03/2020,IJ00094201,1662.66,Gibbs and Dandy
South Holland District Council,http://statistics.data.gov.uk/id/local-authority/32UF,Housing Landlord Manager,Materials and Consumables,19/03/2020,IJ00094201,4130.04,Gibbs and Dandy
South Holland District Council,http://statistics.data.gov.uk/id/local-authority/32UF,Housing,Other Miscellaneous Expenses,05/03/2020,IJ00093778,23577.60,South Holland Homes
South Holland District Council,http://statistics.data.gov.uk/id/local-authority/32UF,Democratic Services,Other Miscellaneous Expenses,19/03/2020,IJ00094077,1000.00,Sutton St James Community Primary School
South Holland District Council,http://statistics.data.gov.uk/id/local-authority/32UF,Democratic Services,Legal Fees Non Routine,31/03/2020,IJ00094634,4820.00,Eversheds LLP
South Holland District Council,http://statistics.data.gov.uk/id/local-authority/32UF,ICT and Customer Services,Materials and Consumables,19/03/2020,IJ00094075,1213.50,Banner Group T A Spectrum
South Holland District Council,http://statistics.data.gov.uk/id/local-authority/32UF,Environmental Services,Other Communication Costs,31/03/2020,IJ00094610,1496.95,Banner Group T A Spectrum
South Holland District Council,http://statistics.data.gov.uk/id/local-authority/32UF,Community Development,Performers and Entertainers Fees,19/03/2020,IJ00094324,790.00,Funhouse Comedy Ltd
South Holland District Council,http://statistics.data.gov.uk/id/local-authority/32UF,Housing,Buildings Maintenance - Responsive,05/03/2020,IJ00093680,794.96,Aaron Services Ltd
South Holland District Council,http://statistics.data.gov.uk/id/local-authority/32UF,Housing Landlord Manager,Buildings Maintenance - Responsive,05/03/2020,IJ00093743,592.12,Aaron Services Ltd
South Holland District Council,http://statistics.data.gov.uk/id/local-authority/32UF,Housing Landlord Manager,Gas Servicing,05/03/2020,IJ00093754,43812.33,Aaron Services Ltd
South Holland District Council,http://statistics.data.gov.uk/id/local-authority/32UF,Housing Landlord Manager,Gas Repairs,05/03/2020,IJ00093807,17251.61,Aaron Services Ltd
South Holland District Council,http://statistics.data.gov.uk/id/local-authority/32UF,Housing Landlord Manager,Buildings Maintenance - Responsive,12/03/2020,IJ00093957,2146.37,Aaron Services Ltd
South Holland District Council,http://statistics.data.gov.uk/id/local-authority/32UF,Housing,Buildings Maintenance - Responsive,12/03/2020,IJ00093958,1098.03,Aaron Services Ltd
South Holland District Council,http://statistics.data.gov.uk/id/local-authority/32UF,Housing Landlord Manager,Gas Servicing,12/03/2020,IJ00094041,9042.56,Aaron Services Ltd
South Holland District Council,http://statistics.data.gov.uk/id/local-authority/32UF,Housing Landlord Manager,Gas Repairs,12/03/2020,IJ00094041,6684.91,Aaron Services Ltd
South Holland District Council,http://statistics.data.gov.uk/id/local-authority/32UF,Housing Landlord Manager,Gas Servicing,12/03/2020,IJ00094043,20818.13,Aaron Services Ltd
South Holland District Council,http://statistics.data.gov.uk/id/local-authority/32UF,Housing Landlord Manager,Solid Fuel Servicing,31/03/2020,IJ00094674,10827.49,Aaron Services Ltd
South Holland District Council,http://statistics.data.gov.uk/id/local-authority/32UF,Housing Landlord Manager,Solid Fuel Servicing,31/03/2020,IJ00094687,735.13,Aaron Services Ltd
South Holland District Council,http://statistics.data.gov.uk/id/local-authority/32UF,Community Development,Furniture and Equipment,12/03/2020,IJ00093836,776.60,Kompan Ltd
South Holland District Council,http://statistics.data.gov.uk/id/local-authority/32UF,Environmental Services,Buildings Maintenance - Programmed,12/03/2020,IJ00093836,428.40,Kompan Ltd
South Holland District Council,http://statistics.data.gov.uk/id/local-authority/32UF,Capital,Purchase of Hardware,19/03/2020,IJ00094315,22000.00,Proband Ltd
South Holland District Council,http://statistics.data.gov.uk/id/local-authority/32UF,ICT and Customer Services,Computer Hardware Maintenance,19/03/2020,IJ00094307,3965.84,Vodafone Ltd
South Holland District Council,http://statistics.data.gov.uk/id/local-authority/32UF,ICT and Customer Services,Computer Hardware Maintenance,19/03/2020,IJ00094309,2087.21,Vodafone Ltd
South Holland District Council,http://statistics.data.gov.uk/id/local-authority/32UF,ICT and Customer Services,Computer Hardware Maintenance,19/03/2020,IJ00094310,2087.22,Vodafone Ltd
South Holland District Council,http://statistics.data.gov.uk/id/local-authority/32UF,Environmental Services,Maintenance,05/03/2020,IJ00093721,549.99,Go Plant Fleet Services
South Holland District Council,http://statistics.data.gov.uk/id/local-authority/32UF,Environmental Services,Maintenance,05/03/2020,IJ00093809,568.26,Go Plant Fleet Services
South Holland District Council,http://statistics.data.gov.uk/id/local-authority/32UF,Environmental Services,Commercial Vehicle Lease Payments (More than 12 months),12/03/2020,IJ00093855,1582.40,Go Plant Fleet Services
South Holland District Council,http://statistics.data.gov.uk/id/local-authority/32UF,Environmental Services,Commercial Vehicle Lease Payments (More than 12 months),12/03/2020,IJ00093978,952.94,Go Plant Fleet Services
South Holland District Council,http://statistics.data.gov.uk/id/local-authority/32UF,Environmental Services,Commercial Vehicle Lease Payments (More than 12 months),12/03/2020,IJ00093979,590.80,Go Plant Fleet Services
South Holland District Council,http://statistics.data.gov.uk/id/local-authority/32UF,Environmental Services,Maintenance,12/03/2020,IJ00093945,282.18,Go Plant Fleet Services
South Holland District Council,http://statistics.data.gov.uk/id/local-authority/32UF,Environmental Services,Maintenance,12/03/2020,IJ00093945,97.67,Go Plant Fleet Services
South Holland District Council,http://statistics.data.gov.uk/id/local-authority/32UF,Environmental Services,Maintenance,12/03/2020,IJ00093945,13158.94,Go Plant Fleet Services
South Holland District Council,http://statistics.data.gov.uk/id/local-authority/32UF,Environmental Services,Maintenance,12/03/2020,IJ00093945,1910.65,Go Plant Fleet Services
South Holland District Council,http://statistics.data.gov.uk/id/local-authority/32UF,Environmental Services,Maintenance,12/03/2020,IJ00093945,52.63,Go Plant Fleet Services
South Holland District Council,http://statistics.data.gov.uk/id/local-authority/32UF,Environmental Services,Commercial Vehicle Lease Payments (More than 12 months),12/03/2020,IJ00093945,1458.03,Go Plant Fleet Services
South Holland District Council,http://statistics.data.gov.uk/id/local-authority/32UF,Environmental Services,Commercial Vehicle Lease Payments (More than 12 months),12/03/2020,IJ00093945,331.32,Go Plant Fleet Services
South Holland District Council,http://statistics.data.gov.uk/id/local-authority/32UF,Environmental Services,Commercial Vehicle Lease Payments (More than 12 months),12/03/2020,IJ00094006,680.00,Go Plant Fleet Services
South Holland District Council,http://statistics.data.gov.uk/id/local-authority/32UF,HR,Staff Training Expenses,31/03/2020,IJ00094628,1500.00,Nottingham City Council
South Holland District Council,http://statistics.data.gov.uk/id/local-authority/32UF,Community Development,Other Income,12/03/2020,IJ00093931,-2356.20,Live Promotions Ltd
South Holland District Council,http://statistics.data.gov.uk/id/local-authority/32UF,Community Development,Payments to Bodies in Respect of Income Collected,12/03/2020,IJ00093931,7980.00,Live Promotions Ltd
South Holland District Council,http://statistics.data.gov.uk/id/local-authority/32UF,Capital,Works to Buildings (main Contractor),12/03/2020,IJ00093951,731.67,Western Power Distribution East Midlands plc
South Holland District Council,http://statistics.data.gov.uk/id/local-authority/32UF,Democratic Services,Other Miscellaneous Expenses,12/03/2020,IJ00093944,600.00,Tulip Events Management
South Holland District Council,http://statistics.data.gov.uk/id/local-authority/32UF,Housing Landlord Manager,Professional & Contractors Fees,12/03/2020,IJ00093954,592.50,Morgan Lambert Ltd 2018
South Holland District Council,http://statistics.data.gov.uk/id/local-authority/32UF,Capital,Works to Buildings (main Contractor),05/03/2020,IJ00093749,7112.68,Vinshire Plumbing and Heating Ltd
South Holland District Council,http://statistics.data.gov.uk/id/local-authority/32UF,Capital,Works to Buildings (main Contractor),12/03/2020,IJ00093894,33150.00,Vinshire Plumbing and Heating Ltd
South Holland District Council,http://statistics.data.gov.uk/id/local-authority/32UF,Environmental Services,Agency Staff,05/03/2020,IJ00093583,3675.54,NJW Services
South Holland District Council,http://statistics.data.gov.uk/id/local-authority/32UF,Environmental Services,Maintenance,05/03/2020,IJ00093817,607.62,NJW Services
South Holland District Council,http://statistics.data.gov.uk/id/local-authority/32UF,Housing,Grants and Contributions to Outside Bodies- No Service Recei,05/03/2020,IJ00093777,8000.00,JPG Builders
South Holland District Council,http://statistics.data.gov.uk/id/local-authority/32UF,Housing,Grants and Contributions to Outside Bodies- No Service Recei,26/03/2020,IJ00094547,8000.00,JPG Builders
South Holland District Council,http://statistics.data.gov.uk/id/local-authority/32UF,Capital,Professional Fees,31/03/2020,IJ00094599,2296.57,BIRKETTS LLP SOLICITORS
South Holland District Council,http://statistics.data.gov.uk/id/local-authority/32UF,Housing,Grants and Contributions- Where a Service is Received,12/03/2020,IJ00093863,540.00,The Lighthouse Church
South Holland District Council,http://statistics.data.gov.uk/id/local-authority/32UF,Housing,Grants and Contributions- Where a Service is Received,12/03/2020,IJ00093864,900.00,The Lighthouse Church
South Holland District Council,http://statistics.data.gov.uk/id/local-authority/32UF,Housing,Grants and Contributions- Where a Service is Received,12/03/2020,IJ00093864,875.00,The Lighthouse Church
South Holland District Council,http://statistics.data.gov.uk/id/local-authority/32UF,Commercialisation,Professional & Contractors Fees,05/03/2020,IJ00093719,38925.00,Collison and Associates Limited
South Holland District Council,http://statistics.data.gov.uk/id/local-authority/32UF,Housing Landlord Manager,Professional & Contractors Fees,05/03/2020,IJ00093640,3750.00,Kier Business Services Ltd
South Holland District Council,http://statistics.data.gov.uk/id/local-authority/32UF,Community Development,Electricity,19/03/2020,IJ00094331,2885.66,Total Gas and Power Ltd
South Holland District Council,http://statistics.data.gov.uk/id/local-authority/32UF,Community Development,Electricity,19/03/2020,IJ00094411,2024.29,Total Gas and Power Ltd
South Holland District Council,http://statistics.data.gov.uk/id/local-authority/32UF,Environmental Services,Agency Staff,05/03/2020,IJ00093595,2255.99,Essential Staffing Ltd
South Holland District Council,http://statistics.data.gov.uk/id/local-authority/32UF,Environmental Services,Agency Staff,12/03/2020,IJ00093853,2689.13,Essential Staffing Ltd
South Holland District Council,http://statistics.data.gov.uk/id/local-authority/32UF,Environmental Services,Agency Staff,19/03/2020,IJ00094333,1295.56,Essential Staffing Ltd
South Holland District Council,http://statistics.data.gov.uk/id/local-authority/32UF,Environmental Services,Agency Staff,26/03/2020,IJ00094488,2258.13,Essential Staffing Ltd
South Holland District Council,http://statistics.data.gov.uk/id/local-authority/32UF,Environmental Services,Agency Staff,31/03/2020,IJ00094622,2446.54,Essential Staffing Ltd
South Holland District Council,http://statistics.data.gov.uk/id/local-authority/32UF,Community Development,Performers and Entertainers Fees,12/03/2020,IJ00093911,757.10,Firebrand Music
South Holland District Council,http://statistics.data.gov.uk/id/local-authority/32UF,Asset and Property,Water and Sewerage Charges,05/03/2020,IJ00093824,1637.42,Wave
South Holland District Council,http://statistics.data.gov.uk/id/local-authority/32UF,Asset and Property,Water and Sewerage Charges,19/03/2020,IJ00094144,1328.62,Wave
South Holland District Council,http://statistics.data.gov.uk/id/local-authority/32UF,Asset and Property,Water and Sewerage Charges,19/03/2020,IJ00094145,766.51,Wave
South Holland District Council,http://statistics.data.gov.uk/id/local-authority/32UF,Asset and Property,Water and Sewerage Charges,26/03/2020,IJ00094504,1173.33,Wave
South Holland District Council,http://statistics.data.gov.uk/id/local-authority/32UF,Planning,Professional & Contractors Fees,26/03/2020,IJ00094514,2250.00,CP Viability Ltd
South Holland District Council,http://statistics.data.gov.uk/id/local-authority/32UF,Finance,Banking Charges,12/03/2020,IJ00093937,526.62,Allpay Limited
South Holland District Council,http://statistics.data.gov.uk/id/local-authority/32UF,Housing Landlord Manager,Banking Charges,12/03/2020,IJ00093938,759.11,Allpay Limited
South Holland District Council,http://statistics.data.gov.uk/id/local-authority/32UF,Housing Landlord Manager,Buildings Maintenance - Programmed,31/03/2020,IJ00094590,32557.58,Mitie Property Services UK Ltd
South Holland District Council,http://statistics.data.gov.uk/id/local-authority/32UF,Economic Development,Professional & Contractors Fees,05/03/2020,IJ00093766,3093.75,Kudos Project Management
South Holland District Council,http://statistics.data.gov.uk/id/local-authority/32UF,Economic Development,Professional & Contractors Fees,12/03/2020,IJ00093989,1983.04,Social Change UK
South Holland District Council,http://statistics.data.gov.uk/id/local-authority/32UF,Housing,Grants and Contributions to Outside Bodies- No Service Recei,05/03/2020,IJ00093620,610.00,Property Panda Lettings Ltd
South Holland District Council,http://statistics.data.gov.uk/id/local-authority/32UF,Housing,Grants and Contributions to Outside Bodies- No Service Recei,05/03/2020,IJ00093775,823.32,Property Panda Lettings Ltd
South Holland District Council,http://statistics.data.gov.uk/id/local-authority/32UF,Housing,Grants and Contributions to Outside Bodies- No Service Recei,19/03/2020,IJ00094146,580.00,Property Panda Lettings Ltd
South Holland District Council,http://statistics.data.gov.uk/id/local-authority/32UF,Democratic Services,Other Miscellaneous Expenses,19/03/2020,IJ00094079,1650.00,Long Sutton Mens Shed
South Holland District Council,http://statistics.data.gov.uk/id/local-authority/32UF,Housing Landlord Manager,Agency Staff,12/03/2020,IJ00093857,2250.00,Greenacre Recruitment Ltd
South Holland District Council,http://statistics.data.gov.uk/id/local-authority/32UF,Housing Landlord Manager,Agency Staff,19/03/2020,IJ00094064,2250.00,Greenacre Recruitment Ltd
South Holland District Council,http://statistics.data.gov.uk/id/local-authority/32UF,Housing Landlord Manager,Agency Staff,26/03/2020,IJ00094499,2250.00,Greenacre Recruitment Ltd
South Holland District Council,http://statistics.data.gov.uk/id/local-authority/32UF,Housing Landlord Manager,Agency Staff,31/03/2020,IJ00094581,2250.00,Greenacre Recruitment Ltd
South Holland District Council,http://statistics.data.gov.uk/id/local-authority/32UF,Democratic Services,Legal Fees Non Routine,31/03/2020,IJ00094677,684.00,Womble Bond Dickinson UK LLP
South Holland District Council,http://statistics.data.gov.uk/id/local-authority/32UF,Housing Landlord Manager,Buildings Maintenance - Responsive,26/03/2020,IJ00094453,650.00,ELAS Occupational Health Ltd
South Holland District Council,http://statistics.data.gov.uk/id/local-authority/32UF,Capital,Professional Fees,31/03/2020,IJ00094615,804.00,Clapham & Collinge LP Client Account
South Holland District Council,http://statistics.data.gov.uk/id/local-authority/32UF,Capital,Purchase of Buildings,31/03/2020,IJ00094615,104658.00,Clapham & Collinge LP Client Account
South Holland District Council,http://statistics.data.gov.uk/id/local-authority/32UF,Capital,Professional Fees,31/03/2020,IJ00094615,314.50,Clapham & Collinge LP Client Account
South Holland District Council,http://statistics.data.gov.uk/id/local-authority/32UF,Commercialisation,Agency Staff,12/03/2020,IJ00093990,4060.00,Vivid Resourcing
South Holland District Council,http://statistics.data.gov.uk/id/local-authority/32UF,Commercialisation,Agency Staff,31/03/2020,IJ00094670,2900.00,Vivid Resourcing
South Holland District Council,http://statistics.data.gov.uk/id/local-authority/32UF,Commercialisation,Agency Staff,31/03/2020,IJ00094671,2900.00,Vivid Resourcing
South Holland District Council,http://statistics.data.gov.uk/id/local-authority/32UF,Asset and Property,Buildings Maintenance - Programmed,19/03/2020,IJ00094180,500.00,Norfolk Scaffolding Ltd
South Holland District Council,http://statistics.data.gov.uk/id/local-authority/32UF,Asset and Property,Buildings Maintenance - Programmed,19/03/2020,IJ00094182,500.00,Norfolk Scaffolding Ltd
South Holland District Council,http://statistics.data.gov.uk/id/local-authority/32UF,ICT and Customer Services,Computer Software Licence Costs,05/03/2020,IJ00093826,12980.00,Aligned Assets Limited
South Holland District Council,http://statistics.data.gov.uk/id/local-authority/32UF,ICT and Customer Services,Computer Software Licence Costs,12/03/2020,IJ00093839,9900.00,Cadline Limited
South Holland District Council,http://statistics.data.gov.uk/id/local-authority/32UF,Community Development,Stationery,26/03/2020,IJ00094558,1132.00,TLS Boca Systems UK
South Holland District Council,http://statistics.data.gov.uk/id/local-authority/32UF,Community Development,License Fees,26/03/2020,IJ00094548,2533.38,PPL PRS Ltd
South Holland District Council,http://statistics.data.gov.uk/id/local-authority/32UF,Building Control,Advertising - Events,05/03/2020,IJ00093605,903.20,Giftfinder Ltd
South Holland District Council,http://statistics.data.gov.uk/id/local-authority/32UF,Building Control,Furniture and Equipment,05/03/2020,IJ00093605,158.40,Giftfinder Ltd
South Holland District Council,http://statistics.data.gov.uk/id/local-authority/32UF,Building Control,Stationery,05/03/2020,IJ00093605,467.00,Giftfinder Ltd
South Holland District Council,http://statistics.data.gov.uk/id/local-authority/32UF,Building Control,Advertising - Events,05/03/2020,IJ00093605,1170.90,Giftfinder Ltd
South Holland District Council,http://statistics.data.gov.uk/id/local-authority/32UF,Building Control,Clothing Uniforms And Laundry,05/03/2020,IJ00093606,737.20,Giftfinder Ltd
South Holland District Council,http://statistics.data.gov.uk/id/local-authority/32UF,Democratic Services,Professional & Contractors Fees,05/03/2020,IJ00093762,840.00,Gully Howard Technical Ltd
South Holland District Council,http://statistics.data.gov.uk/id/local-authority/32UF,Housing Landlord Manager,Buildings Maintenance - Responsive,19/03/2020,IJ00094419,934.57,Stannah
South Holland District Council,http://statistics.data.gov.uk/id/local-authority/32UF,Housing Landlord Manager,Buildings Maintenance - Responsive,19/03/2020,IJ00094421,946.40,Stannah
South Holland District Council,http://statistics.data.gov.uk/id/local-authority/32UF,Housing,Grants and Contributions to Outside Bodies- No Service Recei,26/03/2020,IJ00094441,8464.75,D Hatcher and Sons Ltd
South Holland District Council,http://statistics.data.gov.uk/id/local-authority/32UF,Community Development,Computer Hardware Maintenance,19/03/2020,IJ00094296,1203.82,Spektrix Ltd
South Holland District Council,http://statistics.data.gov.uk/id/local-authority/32UF,Capital,Purchase of Software Licences (Intangible),05/03/2020,IJ00093608,2000.00,Tascomi Ltd
South Holland District Council,http://statistics.data.gov.uk/id/local-authority/32UF,Commercialisation,Agency Staff,05/03/2020,IJ00093641,1111.25,Sonovate Limited
South Holland District Council,http://statistics.data.gov.uk/id/local-authority/32UF,Commercialisation,Agency Staff,19/03/2020,IJ00094187,1163.75,Sonovate Limited
South Holland District Council,http://statistics.data.gov.uk/id/local-authority/32UF,Commercialisation,Agency Staff,19/03/2020,IJ00094416,1251.25,Sonovate Limited
South Holland District Council,http://statistics.data.gov.uk/id/local-authority/32UF,Commercialisation,Agency Staff,26/03/2020,IJ00094496,1137.50,Sonovate Limited
South Holland District Council,http://statistics.data.gov.uk/id/local-authority/32UF,Housing Landlord Manager,Legal Fees,05/03/2020,IJ00093718,943.00,Capsticks Solicitors LLP
South Holland District Council,http://statistics.data.gov.uk/id/local-authority/32UF,Housing Landlord Manager,Professional & Contractors Fees,12/03/2020,IJ00093841,500.00,Capsticks Solicitors LLP
South Holland District Council,http://statistics.data.gov.uk/id/local-authority/32UF,Housing Landlord Manager,Professional & Contractors Fees,12/03/2020,IJ00094020,500.00,Capsticks Solicitors LLP
South Holland District Council,http://statistics.data.gov.uk/id/local-authority/32UF,Environmental Services,Agency Staff,05/03/2020,IJ00093714,1989.40,Capital Outsourcing Group Food
South Holland District Council,http://statistics.data.gov.uk/id/local-authority/32UF,Environmental Services,Agency Staff,12/03/2020,IJ00093943,1508.86,Capital Outsourcing Group Food
South Holland District Council,http://statistics.data.gov.uk/id/local-authority/32UF,Environmental Services,Agency Staff,19/03/2020,IJ00094171,2279.94,Capital Outsourcing Group Food
South Holland District Council,http://statistics.data.gov.uk/id/local-authority/32UF,Environmental Services,Agency Staff,26/03/2020,IJ00094486,2130.09,Capital Outsourcing Group Food
South Holland District Council,http://statistics.data.gov.uk/id/local-authority/32UF,Environmental Services,Agency Staff,31/03/2020,IJ00094623,2279.94,Capital Outsourcing Group Food
South Holland District Council,http://statistics.data.gov.uk/id/local-authority/32UF,Environmental Services,Agency Staff,05/03/2020,IJ00093740,508.75,Steves Garden and Household Services
South Holland District Council,http://statistics.data.gov.uk/id/local-authority/32UF,Environmental Services,Agency Staff,19/03/2020,IJ00094352,508.75,Steves Garden and Household Services
South Holland District Council,http://statistics.data.gov.uk/id/local-authority/32UF,Environmental Services,Agency Staff,26/03/2020,IJ00094484,508.75,Steves Garden and Household Services
South Holland District Council,http://statistics.data.gov.uk/id/local-authority/32UF,Environmental Services,Agency Staff,31/03/2020,IJ00094669,523.75,Steves Garden and Household Services
South Holland District Council,http://statistics.data.gov.uk/id/local-authority/32UF,Housing,Bed and Breakfast Accommodation (Homelessness Service),05/03/2020,IJ00093747,816.63,Smart Move Boston Ltd
South Holland District Council,http://statistics.data.gov.uk/id/local-authority/32UF,Housing,Bed and Breakfast Accommodation (Homelessness Service),12/03/2020,IJ00094049,816.67,Smart Move Boston Ltd
South Holland District Council,http://statistics.data.gov.uk/id/local-authority/32UF,Housing,Bed and Breakfast Accommodation (Homelessness Service),26/03/2020,IJ00094535,816.62,Smart Move Boston Ltd
South Holland District Council,http://statistics.data.gov.uk/id/local-authority/32UF,Environmental Services,Agency Staff,05/03/2020,IJ00093630,4983.90,Encore Personnel Services Ltd
South Holland District Council,http://statistics.data.gov.uk/id/local-authority/32UF,Environmental Services,Agency Staff,12/03/2020,IJ00093849,4481.59,Encore Personnel Services Ltd
South Holland District Council,http://statistics.data.gov.uk/id/local-authority/32UF,Environmental Services,Agency Staff,19/03/2020,IJ00094060,3715.36,Encore Personnel Services Ltd
South Holland District Council,http://statistics.data.gov.uk/id/local-authority/32UF,Environmental Services,Agency Staff,19/03/2020,IJ00094417,3588.64,Encore Personnel Services Ltd
South Holland District Council,http://statistics.data.gov.uk/id/local-authority/32UF,Environmental Services,Agency Staff,31/03/2020,IJ00094641,3640.53,Encore Personnel Services Ltd
South Holland District Council,http://statistics.data.gov.uk/id/local-authority/32UF,Housing Landlord Manager,Roof Repairs,05/03/2020,IJ00093796,800.00,Boors Ltd
South Holland District Council,http://statistics.data.gov.uk/id/local-authority/32UF,Housing Landlord Manager,Buildings Maintenance - Responsive,05/03/2020,IJ00093797,650.00,Boors Ltd
South Holland District Council,http://statistics.data.gov.uk/id/local-authority/32UF,Housing Landlord Manager,Roof Repairs,05/03/2020,IJ00093798,3705.00,Boors Ltd
South Holland District Council,http://statistics.data.gov.uk/id/local-authority/32UF,Housing Landlord Manager,Buildings Maintenance - Responsive,19/03/2020,IJ00094148,1950.00,Boors Ltd
South Holland District Council,http://statistics.data.gov.uk/id/local-authority/32UF,Economic Development,Grants and Contributions to Outside Bodies- No Service Recei,31/03/2020,IJ00094692,7000.00,Forum Packaging Ltd
South Holland District Council,http://statistics.data.gov.uk/id/local-authority/32UF,Environmental Services,Cleaning Contract,19/03/2020,IJ00094202,940.00, Eco Clean Carpet Cleaning
South Holland District Council,http://statistics.data.gov.uk/id/local-authority/32UF,Housing Landlord Manager,Buildings Maintenance - Responsive,12/03/2020,IJ00093959,146.00,H20 Nationwide Limited
South Holland District Council,http://statistics.data.gov.uk/id/local-authority/32UF,Housing Landlord Manager,Buildings Maintenance - Responsive,12/03/2020,IJ00093959,68.60,H20 Nationwide Limited
South Holland District Council,http://statistics.data.gov.uk/id/local-authority/32UF,Housing Landlord Manager,Buildings Maintenance - Responsive,12/03/2020,IJ00093959,59.99,H20 Nationwide Limited
South Holland District Council,http://statistics.data.gov.uk/id/local-authority/32UF,Housing Landlord Manager,Buildings Maintenance - Responsive,12/03/2020,IJ00093959,63.65,H20 Nationwide Limited
South Holland District Council,http://statistics.data.gov.uk/id/local-authority/32UF,Housing Landlord Manager,Buildings Maintenance - Responsive,12/03/2020,IJ00093959,63.65,H20 Nationwide Limited
South Holland District Council,http://statistics.data.gov.uk/id/local-authority/32UF,Housing Landlord Manager,Buildings Maintenance - Responsive,12/03/2020,IJ00093959,82.74,H20 Nationwide Limited
South Holland District Council,http://statistics.data.gov.uk/id/local-authority/32UF,Housing Landlord Manager,Buildings Maintenance - Responsive,12/03/2020,IJ00093959,59.99,H20 Nationwide Limited
South Holland District Council,http://statistics.data.gov.uk/id/local-authority/32UF,Housing Landlord Manager,Buildings Maintenance - Responsive,12/03/2020,IJ00093959,111.59,H20 Nationwide Limited
South Holland District Council,http://statistics.data.gov.uk/id/local-authority/32UF,Housing Landlord Manager,Buildings Maintenance - Responsive,12/03/2020,IJ00093959,59.99,H20 Nationwide Limited
South Holland District Council,http://statistics.data.gov.uk/id/local-authority/32UF,Housing Landlord Manager,Buildings Maintenance - Responsive,12/03/2020,IJ00093959,59.99,H20 Nationwide Limited
South Holland District Council,http://statistics.data.gov.uk/id/local-authority/32UF,Housing Landlord Manager,Buildings Maintenance - Responsive,12/03/2020,IJ00093959,68.60,H20 Nationwide Limited
South Holland District Council,http://statistics.data.gov.uk/id/local-authority/32UF,Housing Landlord Manager,Buildings Maintenance - Responsive,12/03/2020,IJ00093959,68.60,H20 Nationwide Limited
South Holland District Council,http://statistics.data.gov.uk/id/local-authority/32UF,Housing Landlord Manager,Buildings Maintenance - Responsive,12/03/2020,IJ00093959,59.99,H20 Nationwide Limited
South Holland District Council,http://statistics.data.gov.uk/id/local-authority/32UF,Asset and Property,Buildings Maintenance - Responsive,12/03/2020,IJ00093960,85.37,H20 Nationwide Limited
South Holland District Council,http://statistics.data.gov.uk/id/local-authority/32UF,Asset and Property,Buildings Maintenance - Responsive,12/03/2020,IJ00093960,89.26,H20 Nationwide Limited
South Holland District Council,http://statistics.data.gov.uk/id/local-authority/32UF,Asset and Property,Buildings Maintenance - Responsive,12/03/2020,IJ00093960,84.57,H20 Nationwide Limited
South Holland District Council,http://statistics.data.gov.uk/id/local-authority/32UF,Asset and Property,Buildings Maintenance - Responsive,12/03/2020,IJ00093960,59.99,H20 Nationwide Limited
South Holland District Council,http://statistics.data.gov.uk/id/local-authority/32UF,Asset and Property,Buildings Maintenance - Responsive,12/03/2020,IJ00093960,94.70,H20 Nationwide Limited
South Holland District Council,http://statistics.data.gov.uk/id/local-authority/32UF,Spalding Special Expenses,Buildings Maintenance - Responsive,12/03/2020,IJ00093960,121.26,H20 Nationwide Limited
South Holland District Council,http://statistics.data.gov.uk/id/local-authority/32UF,Spalding Special Expenses,Buildings Maintenance - Responsive,12/03/2020,IJ00093960,116.77,H20 Nationwide Limited
South Holland District Council,http://statistics.data.gov.uk/id/local-authority/32UF,Housing Landlord Manager,Buildings Maintenance - Responsive,31/03/2020,IJ00094624,146.00,H20 Nationwide Limited
South Holland District Council,http://statistics.data.gov.uk/id/local-authority/32UF,Housing Landlord Manager,Buildings Maintenance - Responsive,31/03/2020,IJ00094624,68.60,H20 Nationwide Limited
South Holland District Council,http://statistics.data.gov.uk/id/local-authority/32UF,Housing Landlord Manager,Buildings Maintenance - Responsive,31/03/2020,IJ00094624,59.99,H20 Nationwide Limited
South Holland District Council,http://statistics.data.gov.uk/id/local-authority/32UF,Housing Landlord Manager,Buildings Maintenance - Responsive,31/03/2020,IJ00094624,63.65,H20 Nationwide Limited
South Holland District Council,http://statistics.data.gov.uk/id/local-authority/32UF,Housing Landlord Manager,Buildings Maintenance - Responsive,31/03/2020,IJ00094624,63.65,H20 Nationwide Limited
South Holland District Council,http://statistics.data.gov.uk/id/local-authority/32UF,Housing Landlord Manager,Buildings Maintenance - Responsive,31/03/2020,IJ00094624,82.74,H20 Nationwide Limited
South Holland District Council,http://statistics.data.gov.uk/id/local-authority/32UF,Housing Landlord Manager,Buildings Maintenance - Responsive,31/03/2020,IJ00094624,59.99,H20 Nationwide Limited
South Holland District Council,http://statistics.data.gov.uk/id/local-authority/32UF,Housing Landlord Manager,Buildings Maintenance - Responsive,31/03/2020,IJ00094624,111.59,H20 Nationwide Limited
South Holland District Council,http://statistics.data.gov.uk/id/local-authority/32UF,Housing Landlord Manager,Buildings Maintenance - Responsive,31/03/2020,IJ00094624,59.99,H20 Nationwide Limited
South Holland District Council,http://statistics.data.gov.uk/id/local-authority/32UF,Housing Landlord Manager,Buildings Maintenance - Responsive,31/03/2020,IJ00094624,59.99,H20 Nationwide Limited
South Holland District Council,http://statistics.data.gov.uk/id/local-authority/32UF,Housing Landlord Manager,Buildings Maintenance - Responsive,31/03/2020,IJ00094624,68.60,H20 Nationwide Limited
South Holland District Council,http://statistics.data.gov.uk/id/local-authority/32UF,Housing Landlord Manager,Buildings Maintenance - Responsive,31/03/2020,IJ00094624,68.60,H20 Nationwide Limited
South Holland District Council,http://statistics.data.gov.uk/id/local-authority/32UF,Housing Landlord Manager,Buildings Maintenance - Responsive,31/03/2020,IJ00094624,59.99,H20 Nationwide Limited
South Holland District Council,http://statistics.data.gov.uk/id/local-authority/32UF,Asset and Property,Buildings Maintenance - Responsive,31/03/2020,IJ00094626,85.37,H20 Nationwide Limited
South Holland District Council,http://statistics.data.gov.uk/id/local-authority/32UF,Asset and Property,Buildings Maintenance - Responsive,31/03/2020,IJ00094626,89.26,H20 Nationwide Limited
South Holland District Council,http://statistics.data.gov.uk/id/local-authority/32UF,Asset and Property,Buildings Maintenance - Responsive,31/03/2020,IJ00094626,84.57,H20 Nationwide Limited
South Holland District Council,http://statistics.data.gov.uk/id/local-authority/32UF,Asset and Property,Buildings Maintenance - Responsive,31/03/2020,IJ00094626,59.99,H20 Nationwide Limited
South Holland District Council,http://statistics.data.gov.uk/id/local-authority/32UF,Asset and Property,Buildings Maintenance - Responsive,31/03/2020,IJ00094626,94.70,H20 Nationwide Limited
South Holland District Council,http://statistics.data.gov.uk/id/local-authority/32UF,Spalding Special Expenses,Buildings Maintenance - Responsive,31/03/2020,IJ00094626,121.26,H20 Nationwide Limited
South Holland District Council,http://statistics.data.gov.uk/id/local-authority/32UF,Spalding Special Expenses,Buildings Maintenance - Responsive,31/03/2020,IJ00094626,116.77,H20 Nationwide Limited
South Holland District Council,http://statistics.data.gov.uk/id/local-authority/32UF,Asset and Property,Buildings Maintenance - Programmed,04/03/2020,IJ00093594,9450.00,AB Property ta AB Electrical UK Limited
South Holland District Council,http://statistics.data.gov.uk/id/local-authority/32UF,Housing Landlord Manager,Electrical Upgrade,05/03/2020,IJ00093624,1320.00,AB Property ta AB Electrical UK Limited
South Holland District Council,http://statistics.data.gov.uk/id/local-authority/32UF,Asset and Property,Buildings Maintenance - Programmed,05/03/2020,IJ00093691,9450.00,AB Property ta AB Electrical UK Limited
South Holland District Council,http://statistics.data.gov.uk/id/local-authority/32UF,Housing,Buildings Maintenance - Responsive,05/03/2020,IJ00093794,1980.00,AB Property ta AB Electrical UK Limited
South Holland District Council,http://statistics.data.gov.uk/id/local-authority/32UF,Public Protection,Professional & Contractors Fees,12/03/2020,IJ00093870,2348.77,Martin Cranfield Associates Ltd
South Holland District Council,http://statistics.data.gov.uk/id/local-authority/32UF,Housing Landlord Manager,Professional & Contractors Fees,12/03/2020,IJ00093854,1465.00,Environtec Limited
South Holland District Council,http://statistics.data.gov.uk/id/local-authority/32UF,Housing Landlord Manager,Professional & Contractors Fees,31/03/2020,IJ00094690,2100.00,Environtec Limited
South Holland District Council,http://statistics.data.gov.uk/id/local-authority/32UF,Housing Landlord Manager,Legal Fees,05/03/2020,IJ00093767,567.00,Bryan Lecoche Ltd
South Holland District Council,http://statistics.data.gov.uk/id/local-authority/32UF,Housing,Grants and Contributions to Outside Bodies- No Service Recei,26/03/2020,IJ00094439,2837.00,Everett Construction Limited
South Holland District Council,http://statistics.data.gov.uk/id/local-authority/32UF,Public Protection,Professional & Contractors Fees,12/03/2020,IJ00093896,820.00,Health and Safety Technology and Management Ltd
South Holland District Council,http://statistics.data.gov.uk/id/local-authority/32UF,Economic Development,Grants and Contributions to Outside Bodies- No Service Recei,05/03/2020,IJ00093776,1000.00,Direct Cardboard Boxes Ltd
South Holland District Council,http://statistics.data.gov.uk/id/local-authority/32UF,Housing,Grants and Contributions to Outside Bodies- No Service Recei,12/03/2020,IJ00093915,500.00,DGG Property Consultants Ltd
South Holland District Council,http://statistics.data.gov.uk/id/local-authority/32UF,Housing Landlord Manager,Furniture and Equipment,05/03/2020,IJ00093748,520.00,Washco
South Holland District Council,http://statistics.data.gov.uk/id/local-authority/32UF,Economic Development,Grants and Contributions to Outside Bodies- No Service Recei,05/03/2020,IJ00093780,1820.00,Phoeniks Gears
South Holland District Council,http://statistics.data.gov.uk/id/local-authority/32UF,Economic Development,Grants and Contributions to Outside Bodies- No Service Recei,19/03/2020,IJ00094087,13560.00,Nexon SCM Group Ltd
South Holland District Council,http://statistics.data.gov.uk/id/local-authority/32UF,Commercialisation,Agency Staff,12/03/2020,IJ00093986,11600.00,Michael Page International Recruitment Limited
South Holland District Council,http://statistics.data.gov.uk/id/local-authority/32UF,Commercialisation,Agency Staff,31/03/2020,IJ00094659,8700.00,Michael Page International Recruitment Limited
South Holland District Council,http://statistics.data.gov.uk/id/local-authority/32UF,Capital,Works to Buildings (main Contractor),12/03/2020,IJ00093905,6175.05,R A Joinery
South Holland District Council,http://statistics.data.gov.uk/id/local-authority/32UF,Housing Landlord Manager,Staff Training Expenses,19/03/2020,IJ00094172,908.69,David Ganz Associates Ltd
South Holland District Council,http://statistics.data.gov.uk/id/local-authority/32UF,Commercialisation,Professional & Contractors Fees,12/03/2020,IJ00093887,6400.00,Datchet UK Ltd
South Holland District Council,http://statistics.data.gov.uk/id/local-authority/32UF,Capital,Professional Fees,26/03/2020,IJ00094424,2400.00,Environmental Building Solutions EBS Ltd
South Holland District Council,http://statistics.data.gov.uk/id/local-authority/32UF,Commercialisation,Agency Staff,12/03/2020,IJ00093873,3237.50,Routledge Planning Consultancy Limited
South Holland District Council,http://statistics.data.gov.uk/id/local-authority/32UF,Asset and Property,Buildings Maintenance - Programmed,19/03/2020,IJ00094185,3950.00,Vitrine Systems Ltd
South Holland District Council,http://statistics.data.gov.uk/id/local-authority/32UF,Economic Development,Grants and Contributions to Outside Bodies- No Service Recei,31/03/2020,IJ00094689,24999.00,Lincoln Laundry Ltd
South Holland District Council,http://statistics.data.gov.uk/id/local-authority/32UF,Democratic Services,Legal Fees Non Routine,05/03/2020,IJ00093735,1750.00,Howes Percival
South Holland District Council,http://statistics.data.gov.uk/id/local-authority/32UF,Democratic Services,Legal Fees Non Routine,12/03/2020,IJ00094038,1687.00,Howes Percival
South Holland District Council,http://statistics.data.gov.uk/id/local-authority/32UF,Democratic Services,Legal Fees Non Routine,12/03/2020,IJ00094039,3763.95,Howes Percival
South Holland District Council,http://statistics.data.gov.uk/id/local-authority/32UF,HR,Staff Training Expenses,05/03/2020,IJ00093814,1450.00,In Professional Development Limited
South Holland District Council,http://statistics.data.gov.uk/id/local-authority/32UF,Democratic Services,Other Miscellaneous Expenses,05/03/2020,IJ00093821,1250.00,Friends of Lutton School
South Holland District Council,http://statistics.data.gov.uk/id/local-authority/32UF,Planning,Planning Application Fees,26/03/2020,IJ00093820,690.00,Fleming Residential Limited
South Holland District Council,http://statistics.data.gov.uk/id/local-authority/32UF,Balance Sheet,Long Term Debtors - Other,05/03/2020,IJ00093802,9695.00,Cecil & Larter
South Holland District Council,http://statistics.data.gov.uk/id/local-authority/32UF,Community Development,Furniture and Equipment,19/03/2020,IJ00094294,613.50,Technical Lamp Supplies UK Ltd
South Holland District Council,http://statistics.data.gov.uk/id/local-authority/32UF,Economic Development,Grants and Contributions to Outside Bodies- No Service Recei,31/03/2020,IJ00094693,10500.00,Uk Container Repairs Ltd
South Holland District Council,http://statistics.data.gov.uk/id/local-authority/32UF,Democratic Services,Fees and Charges General,12/03/2020,IJ00093999,500.00,Election Claims Unit
South Holland District Council,http://statistics.data.gov.uk/id/local-authority/32UF,Democratic Services,Fees and Charges General,12/03/2020,IJ00093999,500.00,Election Claims Unit
South Holland District Council,http://statistics.data.gov.uk/id/local-authority/32UF,Economic Development,Grants and Contributions to Outside Bodies- No Service Recei,19/03/2020,IJ00094149,3206.00,JLP Cosmetics Limited
South Holland District Council,http://statistics.data.gov.uk/id/local-authority/32UF,Housing,Grants and Contributions to Outside Bodies- No Service Recei,26/03/2020,IJ00094569,6528.18,CSM Carpets and Flooring Ltd
